Cogmind - Beta 16.1 @@@ ROGUE MODE // 2026.01.04 @ 02:13:18 Player: cptwinky Result: Escaped! Performance ------------- Evolutions (9) 4500 Regions Visited (27) 5400 Robots Destroyed (427) 2135 Value Destroyed (20875) 20875 Prototype IDs (58) 1160 Alien Tech Used (3) 600 Bonus (16958) 16958 TOTAL SCORE: 51628 Bonus ------- High Alert Combat Kills 1878 Follower Combat Kills 2861 Entered Garrisons 1200 Used RIF Installer 4500 Network Hubs Disabled 200 Aligned with FarCom 300 Built Enhanced Grunts 300 A7 Reached Mainframe 300 Met R17 at Cetus 500 Found Hidden Lab 3000 Met R17 at Research 2000 Win 3000 Friendly Fire -3081 Cogmind --------- Core Integrity 1302/1600 Matter 222/300 Energy 650/670 System Corruption 10% Temperature Cool (17) Movement Treading (158) Location To Epsilon Eridani Parts ------- > --- POWER (3) -------- Heavy Antimatter Reactor Heavy Antimatter Reactor Light Quantum Reactor > --- PROPULSION (6) --- Medium Treads Improved Heavy Siege Treads Centrium Heavy Treads Experimental Biometal Medium Treads > --- UTILITY (13) ----- Advanced Coolant Injector Huge Storage Unit Advanced Targeting Computer Advanced Targeting Computer Improved Armor Integrity Analyzer Heavy Regenerative Plating Graphene Brace (fused) Relay Coupler [NC] (22) Long-range Tractor Beam > --- WEAPON (4) ------- Enhanced Nova Cannon Enhanced Hardcell Cannon Compact Tesla Bomb Launcher Advanced Remote Datajack > --- INVENTORY (25) --- Light Quantum Reactor Light Quantum Reactor Centrium Wheel Large Storage Unit Matter Compressor (250) Relay Coupler [Specialist] (27) Improved Trap Extractor (6/6 Armageddon) Hypervelocity EM Gauss Rifle HERF Cannon HERF Cannon HERF Cannon Matter Neutralizer Guided Plasma Cannon Hypervelocity Railgun Hypervelocity Gauss Cannon Heavy Gauss Cannon Mini Smartbomb Launcher Tiamat Missile Launcher Advanced Remote Datajack Guided Remote Datajack Impact Mace Peak State ------------ > --- POWER ------------ Heavy Antimatter Reactor Heavy Antimatter Reactor Heavy Antimatter Reactor > --- PROPULSION ------- Improved Heavy Siege Treads Improved Heavy Siege Treads Centrium Heavy Treads > --- UTILITY ---------- Advanced Heat Sink Advanced Coolant Injector Huge Storage Unit Advanced Targeting Computer Advanced Targeting Computer Improved Armor Integrity Analyzer Heavy Regenerative Plating Graphene Brace Hacking Suite Deep Network Scanner Relay Coupler [NC] Long-range Tractor Beam > --- WEAPON ----------- Enhanced Nova Cannon Hypervelocity Gauss Cannon Hypervelocity Gauss Cannon Advanced Remote Datajack > --- INVENTORY -------- Light Quantum Reactor Light Quantum Reactor Experimental Biometal Medium Treads Centrium Wheel Large Storage Unit Matter Compressor Relay Coupler [Specialist] Improved Trap Extractor Transdimensional Reconstructor Hypervelocity EM Gauss Rifle HERF Cannon HERF Cannon HERF Cannon Matter Neutralizer Guided Plasma Cannon Hypervelocity Railgun Heavy Gauss Cannon Enhanced Hardcell Cannon Compact Tesla Bomb Launcher Mini Smartbomb Launcher Tiamat Missile Launcher Advanced Remote Datajack Guided Remote Datajack Impact Mace [Rating: 189] Favorites ----------- Power Heavy Antimatter Reactor Engine Improved Deuterium Engine Power Core Cooled Fission Core Reactor Heavy Antimatter Reactor Propulsion Light Treads Treads Light Treads Leg Carbon-fiber Leg Hover Unit Aerolev Unit Utility Huge Storage Unit Device Improved Cooling System Storage Huge Storage Unit Processor Advanced Targeting Computer Hackware Relay Coupler [NC] Protection Hardened Medium Armor Plating Weapon Hypervelocity Gauss Cannon Energy Gun Small Laser Energy Cannon Improved EM Pulse Cannon Ballistic Gun Flak Gun Ballistic Cannon Hypervelocity Gauss Cannon Launcher Long-range Missile Launcher Special Weapon Advanced Remote Datajack Impact Weapon Power Maul Special Melee Weapon Improved Datajack Build | -11 -10 -10 -10 -9 -8 -8 -8 -8 -7 -7 -7 -7 -6 -6 -5 -5 -5 -5 -5 -4 -4 -4 -4 -4 -3 -2 -1 ------- Run | Yrd Mat Min Exi Min Mat Gar Mat Gar Fac Gar Fac Gar Fac Gar Fac Ext Cet Arc Hub Fac Gar Fac Arm Lab Res Res Acc Slots Evolved 18 | . . . . . 4 . . . 2 . . . 2 . 2 . . . . 2 . . . . 2 2 2 Power 2 | . . . . . . . . . . . . . 1 . . . . . . . . . . . 1 . . Propulsion 4 | . . . . . 1 . . . 1 . . . . . 1 . . . . 1 . . . . . . . Utility 11 | . . . . . 2 . . . 1 . . . 1 . 1 . . . . 1 . . . . 1 2 2 Weapon 1 | . . . . . 1 . . . . . . . . . . . . . . . . . . . . . . Parts Attached 252 | 6 2 3 1 1 18 9 10 22 4 6 7 18 9 19 22 8 5 1 . 5 5 3 28 5 5 8 22 Power 28 | 1 . . . . 1 . 1 4 1 1 . 2 2 4 1 . 1 . . . 2 . 4 . 1 . 2 Engine 8 | 1 . . . . 1 . 1 . . 1 . . 1 2 1 . . . . . . . . . . . . Core 12 | . . . . . . . . 4 1 . . 2 1 2 . . 1 . . . . . 1 . . . . Reactor 8 | . . . . . . . . . . . . . . . . . . . . . 2 . 3 . 1 . 2 Propulsion 51 | 2 1 1 . . 4 1 3 5 1 1 1 3 . 8 7 1 2 . . 1 1 1 3 1 . . 3 Treads 38 | 2 1 1 . . 3 1 3 5 1 1 1 3 . . 3 1 2 . . 1 1 1 3 1 . . 3 Leg 12 | . . . . . . . . . . . . . . 8 4 . . . . . . . . . . . . Wheel . | . . . . . . . . . . . . . . . . . . . . . . . . . . . . Hover 1 | . . . . . 1 . . . . . . . . . . . . . . . . . . . . . . Flight . | . . . . . . . . . . . . . . . . . . . . . . . . . . . . Utility 109 | 1 1 1 1 . 9 2 3 6 2 3 2 13 6 4 10 6 2 1 . 2 1 1 11 2 1 4 14 Device 31 | . 1 1 . . 3 1 . 4 . . . 4 1 1 3 . . 1 . 1 . 1 4 . . . 5 Storage 6 | 1 . . 1 . 1 . . . . . . 1 . . 1 . . . . . . . . . . . 1 Processor 12 | . . . . . 3 . . . . . . 1 1 . 1 1 . . . . . . . . . 1 4 Hackware 40 | . . . . . 1 1 2 . 2 3 1 5 3 1 4 2 . . . 1 1 . 6 . 1 3 3 Protection 20 | . . . . . 1 . 1 2 . . 1 2 1 2 1 3 2 . . . . . 1 2 . . 1 Artifact . | . . . . . . . . . . . . . . . . . . . . . . . . . . . . Weapon 64 | 2 . 1 . 1 4 6 3 7 . 1 4 . 1 3 4 1 . . . 2 1 1 10 2 3 4 3 Energy Gun 6 | 1 . 1 . . . . . . . . . . . 1 . . . . . . . . 1 1 1 . . Energy Cannon 11 | . . . . . . . . 2 . . 1 . 1 . 2 . . . . . . . 1 . 1 3 . Ballistic Gun 14 | 1 . . . 1 3 4 2 2 . . . . . . . . . . . . . . . . . . 1 Ballistic Cannon 14 | . . . . . . . . 2 . . 2 . . 2 1 1 . . . 1 . . 4 . . . 1 Launcher 8 | . . . . . 1 . . . . . 1 . . . . . . . . . 1 . 3 . . 1 1 Special Weapon 6 | . . . . . . . . . . 1 . . . . 1 . . . . 1 . 1 . 1 1 . . Impact Weapon 4 | . . . . . . 1 1 1 . . . . . . . . . . . . . . 1 . . . . Slashing Weapon . | . . . . . . . . . . . . . . . . . . . . . . . . . . . . Piercing Weapon . | . . . . . . . . . . . . . . . . . . . . . . . . . . . . Special Melee Weapon 1 | . . . . . . 1 . . . . . . . . . . . . . . . . . . . . . Unidentified Prototypes 22 | . . 1 . . 1 . 1 . . . . . . . 4 . 3 . . . . . 5 5 . 1 1 Parts Lost 47 | . . . . . 1 1 1 4 . . 1 3 1 15 . . . . . 1 . 2 3 . . . 14 Power 8 | . . . . . 1 . 1 1 . . . 1 . 2 . . . . . . . . . . . . 2 Propulsion 9 | . . . . . . . . . . . 1 2 1 4 . . . . . . . . . . . . 1 Utility 21 | . . . . . . 1 . 2 . . . . . 5 . . . . . 1 . 2 . . . . 10 Weapon 9 | . . . . . . . . 1 . . . . . 4 . . . . . . . . 3 . . . 1 Highest Loss Streak 11 | . . . . . 1 1 1 3 . . 1 2 1 11 . . . . . 1 . 2 1 . . . 3 To Critical Strikes . | . . . . . . . . . . . . . . . . . . . . . . . . . . . . Average Backups 22 | 3 6 6 7 15 19 23 23 24 24 24 24 24 23 20 24 24 24 23 23 22 24 24 22 23 23 23 24 Power 1 | . 1 1 1 4 3 2 2 3 3 3 2 1 . 1 1 1 2 1 1 1 1 1 1 2 1 1 1 Propulsion 1 | 1 3 2 2 2 2 2 2 2 1 2 2 . . 1 1 . . 1 1 1 1 1 1 . . . 1 Utility 9 | . . 1 2 3 5 9 9 8 8 7 7 12 12 7 14 15 14 14 14 12 11 12 8 8 8 5 5 Weapon 8 | . 1 1 1 4 7 8 9 9 10 10 10 9 9 6 5 5 5 5 5 6 8 8 8 9 11 14 12 Tool/Special . | . . . . . . . . . . . . . . . . . . . . . . . . . . . . Unused Backups 46 | . 2 . 1 . 5 3 4 . . 2 2 1 2 1 4 2 3 1 . 3 . . 2 . . . 8 Power 9 | . . . . . 1 1 . . . . 1 . . . 1 . 1 1 . . . . 1 . . . 2 Propulsion 9 | . 2 . . . 1 . . . . 1 . . . . 1 1 2 . . . . . . . . . 1 Utility 10 | . . . . . . 1 . . . . 1 1 . 1 1 1 . . . 1 . . . . . . 3 Weapon 15 | . . . 1 . 2 1 4 . . 1 . . 2 . . . . . . 2 . . 1 . . . 1 Tool/Special 3 | . . . . . 1 . . . . . . . . . 1 . . . . . . . . . . . 1 Average Slot Usage (%) 93 | . 98 100 74 100 99 100 99 99 99 100 94 94 99 94 99 93 89 88 88 84 88 88 86 79 78 82 81 Engine 5 | . 14 14 14 14 9 9 8 1 . 2 7 . 4 2 9 11 8 5 5 5 2 . . . . . . Core 2 | . . . . . . . . 6 7 4 . 5 7 10 . . 2 5 5 5 5 5 5 . . . . Reactor 2 | . . . . . . . . . . . . . . . . . . . . . 2 5 4 10 13 12 11 Treads 20 | . 28 28 28 28 26 27 27 26 30 30 29 29 26 5 2 18 18 17 17 15 21 21 19 15 10 12 11 Leg 2 | . . . . . . . . . . . . . . 19 26 3 . . . . . . . . . . . Device 7 | . 12 14 14 14 9 8 1 8 12 9 4 4 . 7 7 4 5 5 5 8 10 9 7 10 9 7 10 Storage 6 | . 14 14 14 14 9 9 9 9 7 7 7 7 6 6 5 5 5 5 5 5 5 5 5 5 4 4 3 Processor 8 | . . . . . 8 9 9 9 7 7 7 7 13 13 11 11 11 11 11 10 10 9 5 5 4 4 5 Hackware 7 | . . . . . . . 7 . 1 4 5 4 12 3 7 11 11 11 11 11 9 10 16 10 12 19 18 Protection 5 | . . . . . 8 9 8 8 7 7 6 7 5 5 4 4 5 5 5 5 5 5 6 5 4 4 3 Energy Cannon 1 | . . . . . . . . . 1 . 2 5 . 1 3 2 . . . . 1 . 3 1 2 4 2 Ballistic Gun 7 | . 14 14 2 19 26 25 26 22 5 6 2 . 12 3 . . . . . . . . . . . . . Ballistic Cannon 8 | . . . . . . . . 3 15 15 14 13 4 9 11 11 16 17 14 14 13 13 10 8 9 8 6 Special Weapon 1 | . . . . . . . . . . . . 2 . 2 1 2 . . 2 . . . . . 3 3 2 Peak Build Rating 189 | 7 11 16 14 19 41 43 41 43 50 51 55 55 61 69 96 98 110 111 109 120 127 134 139 155 163 177 189 Average Rating 79 | 6 9 11 10 16 37 40 38 40 48 50 50 51 57 61 82 93 102 109 109 116 122 130 131 140 152 175 180 On Entrance 73 | . 7 11 12 14 19 40 41 36 42 49 51 50 53 59 66 96 87 110 109 109 120 125 121 129 151 163 177 Avg Prop Armor Cover (%) 3 | . . . . . . . . . . . . . . 2 3 3 . . . . . . . . . . . Naked Turns . | . . . . . . . . . . . . . . . . . . . . . . . . . . . . Heaviest Build 212 | 12 14 14 49 55 110 112 110 117 122 120 134 139 135 136 148 146 149 149 149 154 159 159 165 177 195 202 212 Greatest Support 235 | 40 43 46 46 46 69 66 65 64 94 95 95 98 90 70 124 144 187 187 187 210 210 217 235 230 230 230 230 Greatest Overweight (x) 8 | . . . 1 1 1 1 1 1 1 1 1 1 1 8 2 1 1 . . . . . . . 1 . . Average Overweight (x) . | . . . . 1 . 1 1 1 1 1 1 1 1 1 1 . . . . . . . . . . . . Largest Inventory Capacity 25 | 8 8 8 20 20 25 25 25 25 25 25 25 25 25 25 25 25 25 25 25 25 25 25 25 25 25 25 25 Average Capacity 23 | 7 8 8 14 20 22 25 25 25 25 25 25 25 25 25 25 25 25 25 25 25 25 25 25 25 25 25 25 Most Carried 25 | 5 8 8 11 19 25 25 25 25 25 25 25 25 25 25 25 25 25 25 24 25 25 25 25 25 25 25 25 Average Carried 22 | 4 7 7 8 16 20 24 24 24 24 24 24 24 23 20 24 24 24 24 24 23 24 24 23 23 24 23 24 Final Capacity 25 | 8 8 8 20 20 25 25 25 25 25 25 25 25 25 25 25 25 25 25 25 25 25 25 25 25 25 25 25 Final Carried 25 | 5 8 8 11 19 25 25 25 25 25 24 25 25 23 25 25 25 25 24 24 25 25 25 25 25 25 25 21 Class Distribution -------------------- 22% | Botlord-Tank 15% | Tank 8% | Mutant 7% | Botlord-Gunner 6% | Trapper-Tank 6% | Hacker-Tank 5% | Bothacker-Tank 4% | Bothacker-Skirmisher 3% | Skirmisher 3% | Scavenger-Gunner 3% | Bothacker-Gunner 3% | Trapper-Skirmisher 3% | Scavenger-Tank Dominant Class ---------------- Mutant | -10/Materials Mutant | -10/Mines Mutant | -10/Exiles Mutant | -9/Mines Tank | -8/Materials Tank | -8/Garrison Skirmisher | -8/Materials Tank | -8/Garrison Bothacker-Tank | -7/Factory Trapper-Tank | -7/Garrison Trapper-Skirmisher | -7/Factory Bothacker-Skirmisher | -7/Garrison Bothacker-Gunner | -6/Factory Scavenger-Gunner | -6/Garrison Botlord-Gunner | -5/Factory Botlord-Tank | -5/Extension Botlord-Tank | -5/Cetus Botlord-Tank | -5/Archives Botlord-Tank | -5/Hub_04(d) Botlord-Tank | -4/Factory Botlord-Tank | -4/Garrison Botlord-Tank | -4/Factory Botlord-Tank | -4/Armory Tank | -4/Lab Scavenger-Tank | -3/Research Hacker-Tank | -2/Research Hacker-Tank | -1/Access Resources | -11 -10 -10 -10 -9 -8 -8 -8 -8 -7 -7 -7 -7 -6 -6 -5 -5 -5 -5 -5 -4 -4 -4 -4 -4 -3 -2 -1 ----------- Run | Yrd Mat Min Exi Min Mat Gar Mat Gar Fac Gar Fac Gar Fac Gar Fac Ext Cet Arc Hub Fac Gar Fac Arm Lab Res Res Acc Matter Collected 16238 | 295 16 39 . 168 1053 617 455 1106 115 469 650 863 467 1198 491 826 617 286 106 380 615 308 2192 114 666 317 1809 Remotely 916 | . . . . . . . . . . . . . . . . . . . . . . . . . . . 916 Salvage Created 17527 | 242 43 85 . 179 1589 760 621 1127 99 207 668 1121 262 662 369 989 292 31 83 593 766 419 2137 . 355 1059 2769 Parts 894 | 19 5 7 . 13 89 34 37 85 3 15 36 55 7 26 22 40 10 2 5 22 34 16 104 . 12 40 156 Haulers Intercepted 9 | . . . . . 5 . 2 . . . 1 . . . 1 . . . . . . . . . . . . Recyclers Shooed 18 | . . 1 . . 6 . . . . . 1 . 2 . 4 . . . . . . 1 . . . 3 . Parts Field Recycled . | . . . . . . . . . . . . . . . . . . . . . . . . . . . . Retrieved Matter . | . . . . . . . . . . . . . . . . . . . . . . . . . . . . Parts Self-Destructed . | . . . . . . . . . . . . . . . . . . . . . . . . . . . . Prevented . | . . . . . . . . . . . . . . . . . . . . . . . . . . . . Parts Restored 1 | . . . . . . . . . . . . . . . 1 . . . . . . . . . . . . Broken 1 | . . . . . . . . . . . . . . . 1 . . . . . . . . . . . . Kills | -11 -10 -10 -10 -9 -8 -8 -8 -8 -7 -7 -7 -7 -6 -6 -5 -5 -5 -5 -5 -4 -4 -4 -4 -4 -3 -2 -1 ------- Run | Yrd Mat Min Exi Min Mat Gar Mat Gar Fac Gar Fac Gar Fac Gar Fac Ext Cet Arc Hub Fac Gar Fac Arm Lab Res Res Acc Combat Hostiles Destroyed 352 | . 3 4 . 6 40 22 13 40 . 10 15 26 2 19 6 14 5 . 1 4 17 5 44 . 4 9 43 Melee 1 | . . . . . . . . . . . 1 . . . . . . . . . . . . . . . . Guns 134 | . 3 4 . 6 34 22 13 38 . 3 . 1 2 4 . . . . . . . . . . . . 4 Cannons 153 | . . . . . . . . 2 . 7 14 16 . 11 4 14 5 . 1 4 12 5 30 . 2 2 24 AOE 52 | . . . . . 6 . . . . . . 5 . 4 2 . . . . . 5 . 14 . 2 3 11 Classes Destroyed 20 | 2 1 1 . 1 6 1 . 1 . . . 1 . 2 . . . 1 . . . . 3 . . . . Worker 12 | . . . . . 5 . 1 . 1 . . . 1 . . . . . 2 1 . . . . . . 1 Builder 7 | . . . . 1 . . . . . . 1 . . . 1 1 . . . . . 1 . . . . 2 Tunneler 12 | 9 . . . . 1 . . . . . 1 . . . 1 . . . . . . . . . . . . Hauler 9 | . . . . . 5 . 2 . . . 1 . . . 1 . . . . . . . . . . . . Recycler 16 | 1 . . . . 3 . . . 1 . 1 . 1 . 1 1 . . . 2 . 1 . . 1 2 1 Mechanic 1 | . . . . . 1 . . . . . . . . . . . . . . . . . . . . . . Operator 5 | . . . . . . . . . . . . . . . . . . 1 . 1 . . 3 . . . . Watcher 6 | . . . . . . . . . . . . 1 1 . 1 1 1 . . 1 . . . . . . . Swarmer 88 | . 3 3 . 3 14 6 . 16 . 6 2 4 . . 4 4 . . . . 6 . 7 . . . 10 Cutter 3 | . . . . . . . . . . . . . . 3 . . . . . . . . . . . . . Saboteur 2 | . . . . . . . . . . . . . . . . . . . . . . . 2 . . . . Grunt 118 | . . 1 . 3 14 15 4 9 . 1 7 10 1 14 . 3 . . . 2 3 1 18 . 3 . 9 Brawler 3 | . . . . . . . . . . . . . . . . . . . . . . . 2 . . . 1 Duelist 8 | . . . . . 2 . 1 . . . . 1 1 . . . . . . . . . 2 . 1 . . Protector 1 | . . . . . . . . . . . . . . . . . . . . . . . 1 . . . . Sentry 46 | . . . . . 9 1 7 5 . 1 2 5 . . . 7 . . 1 1 3 1 3 . . . . Specialist 3 | . . . . . . . . 1 . . . 1 . 1 . . . . . . . . . . . . . Hunter 19 | . . . . . 1 . 1 1 . . 1 3 . . . . . . . 1 1 1 . . . 6 3 Programmer 58 | . . . . . . 1 . 8 . 2 4 2 . . 2 . . . . . 4 2 11 . . 4 18 Behemoth 3 | . . . . . . . . . . . . . . 1 . . . . . . . . . . . . 2 Cetus Guard 5 | . . . . . . . . . . . . . . . . . 5 . . . . . . . . . . Thug 1 | . . . . . . . . . . . . . . . . 1 . . . . . . . . . . . Best Kill Streak 10 | 2 3 3 . 4 7 4 2 8 1 4 3 7 2 4 8 5 4 1 2 3 7 3 8 . 4 10 8 Combat Bots Only 9 | . 3 3 . 4 6 4 2 8 . 4 3 7 2 4 4 5 4 . 1 2 7 2 8 . 4 9 7 Max Kills in Single Turn 5 | 1 1 2 . 1 4 2 2 2 1 2 2 4 1 2 3 3 1 1 1 1 3 2 3 . 2 3 5 Gunslinging 1 | . . 1 . . 1 1 1 1 . . . . . . . . . . . . . . . . . . . Exploded 4 | . . . . . 3 . . . . . . 4 . 2 2 . . . . . 3 . 3 . 2 2 4 Melee 1 | . . . . . . . . . . . 1 . . . . . . . . . . . . . . . . Uniques/NPCs Destroyed 1 | . . . . . . . . . . . . . . . . . 1 . . . . . . . . . . A7 (-5/Cetus) Combat | -11 -10 -10 -10 -9 -8 -8 -8 -8 -7 -7 -7 -7 -6 -6 -5 -5 -5 -5 -5 -4 -4 -4 -4 -4 -3 -2 -1 -------- Run | Yrd Mat Min Exi Min Mat Gar Mat Gar Fac Gar Fac Gar Fac Gar Fac Ext Cet Arc Hub Fac Gar Fac Arm Lab Res Res Acc Hostile Shots Fired 1840 | . 9 15 . 21 111 67 26 137 9 68 102 160 47 187 7 54 5 1 2 20 90 43 107 . 25 85 442 Missed 495 | . 4 6 . 9 36 18 9 34 5 23 29 49 18 48 2 15 1 . 2 3 27 9 34 . 8 25 81 Hits 1345 | . 5 9 . 12 75 49 17 103 4 45 73 111 29 139 5 39 4 1 . 17 63 34 73 . 17 60 361 Melee 13 | . . . . . . . 1 . . . . . 1 4 . . . . . . . . . . 3 . 4 Projectile 1332 | . 5 9 . 12 75 49 16 103 4 45 73 111 28 135 5 39 4 1 . 17 63 34 73 . 14 60 357 AOE 4 | . . . . . . . . . . . . . . 2 . . . . . . . 1 1 . . . . Critical Strikes 70 | . . . . . 3 2 . 7 . . 4 2 1 11 1 1 1 . . 3 4 . 7 . 2 4 17 Actively Blocked 26 | . . . . . . . . . . . . . . . . . . . . . . . 3 . 2 4 17 Part Disruptions 2 | . . . . . . . . . . . . . . . . . . . . . . . . . . 1 1 Damage Taken 21752 | . 30 53 . 81 838 568 268 1598 195 292 1090 1075 367 2627 189 625 78 23 82 294 676 668 1551 . 419 1244 6821 Core 1218 | . . 6 . . 107 38 28 225 . 67 156 146 62 114 . 26 15 . . . 8 21 16 . . . 183 Absorbed by Shields 2199 | . 13 21 . 31 256 160 16 329 . 152 . 84 . 189 16 202 47 . . 108 420 155 . . . . . Reduced by Siege Mode 816 | . . . . . . . . . . . . . . . . . . . . . . 4 . . . . 812 Ignored by Resistances 74 | . . . . . . . . . . . . 16 . 58 . . . . . . . . . . . . . Regen/Repaired (Parts) 3293 | . . . . . 119 . . . . . . . . . . . . . . 157 . 170 . . 151 89 2607 Core Remaining (%) 82 | 100 . . . 97 . . . 27 . . . 47 . 79 . . . . 95 . . . . 96 100 100 81 Volleys Fired 1065 | 35 6 9 . 12 67 24 20 57 6 25 50 74 38 69 32 69 17 2 5 16 36 18 117 14 38 21 188 Largest 3 | 2 2 2 . 2 3 3 3 3 1 3 3 3 3 3 3 3 3 3 3 3 3 3 3 1 2 3 3 Hottest 229 | 60 60 60 . 60 84 84 84 138 69 105 149 149 90 160 192 192 153 153 153 153 153 153 197 120 113 222 229 Shots Fired 2063 | 70 12 17 . 24 190 73 61 152 6 58 100 112 48 137 49 112 49 4 11 40 74 34 199 14 46 33 338 Gun 749 | 70 12 17 . 24 185 73 61 137 . 19 13 2 10 37 . . . . . . . . . . 16 1 72 Cannon 1142 | . . . . . . . . 15 6 34 81 95 24 82 42 80 48 3 9 37 72 31 173 14 27 26 243 Launcher 41 | . . . . . 5 . . . . . 1 1 . 4 . . . . . . 2 . 13 . . 4 11 Special 131 | . . . . . . . . . . 5 5 14 14 14 7 32 1 1 2 3 . 3 13 . 3 2 12 Kinetic 1460 | 35 6 9 . 16 185 73 61 148 2 53 76 51 24 104 24 66 48 3 9 36 59 26 136 . 16 16 178 Thermal 230 | 35 6 8 . 8 . . . . . . 4 . 1 4 17 14 . . . 1 13 5 14 2 8 9 81 Explosive 30 | . . . . . 5 . . . . . 1 1 . 4 . . . . . . 2 . 13 . . . 4 Electromagnetic 212 | . . . . . . . . 4 4 . 14 46 9 11 1 . . . . . . . 23 12 19 6 63 Robot Hit Streak 33 | 10 9 7 . 7 25 11 18 12 5 12 9 20 12 21 6 23 21 11 13 10 18 10 23 . 11 14 33 Robot Miss Streak 10 | 3 3 3 . 3 6 10 4 9 . 2 2 3 2 2 2 1 1 . 1 3 2 1 3 . 1 1 4 Penetration Max 2 | . . . . . . . . . . . 1 . . 1 1 1 1 . . 1 1 . 2 . 1 1 2 Secondary Targets 29 | . 1 2 . 1 5 8 1 11 . . . . . . . . . . . . . . . . . . . Max Gunslinging Chain 2 | . 1 1 . 1 1 2 1 1 . . . . . . . . . . . . . . . . . . . Shots Hit Robots 1320 | 50 7 11 . 18 148 74 53 116 7 33 71 75 28 95 21 73 44 2 5 21 35 10 105 . 26 16 176 Core Hits 939 | 14 5 6 . 12 183 81 79 139 2 12 24 32 8 42 12 28 9 1 3 13 22 9 78 . 15 22 88 Critical Kills 105 | . . . . . . . . . . . . . . 4 5 13 6 1 1 8 11 7 26 . 1 2 20 Critical Parts Destroyed 101 | . . . . . . . . . . . 2 . . 5 1 10 10 . 3 4 8 4 20 . 4 5 25 Critical Strikes 249 | . . . . . . . . 2 . 4 11 3 . 14 8 26 21 1 4 14 20 12 47 . 5 7 50 Meltdown 1 | . . . . . . . . . . . . . . . . . . . . . . . . . . . 1 Destroy 216 | . . . . . . . . . . . . . . 9 6 26 17 1 4 14 20 12 46 . 5 7 49 Blast 24 | . . . . . . . . 1 . 4 9 3 . 5 2 . . . . . . . . . . . . Corrupt 2 | . . . . . . . . 1 . . . . . . . . . . . . . . 1 . . . . Smash 6 | . . . . . . . . . . . 2 . . . . . 4 . . . . . . . . . . Melee Attacks 88 | . . . . . . 20 4 10 3 3 14 . . . 2 4 7 . . . . . 4 16 1 . . Impact 66 | . . . . . . 8 . 10 . . 14 . . . 2 4 7 . . . . . 4 16 1 . . Slashing . | . . . . . . . . . . . . . . . . . . . . . . . . . . . . Piercing . | . . . . . . . . . . . . . . . . . . . . . . . . . . . . Sneak Attacks 24 | . . . . . . 9 4 . 1 . 3 . . . . . 7 . . . . . . . . . . Combat Hostiles . | . . . . . . . . . . . . . . . . . . . . . . . . . . . . Follow-up Attacks . | . . . . . . . . . . . . . . . . . . . . . . . . . . . . Damage Inflicted 36057 | 479 63 106 . 193 3555 1137 1075 2253 125 727 2390 2068 445 2704 835 1074 1163 14 105 422 1411 338 4529 . 652 1470 6724 Guns 8940 | 479 62 106 . 184 2698 1137 1001 2046 . 201 96 31 98 538 . . . . . . . . . . 22 3 238 Cannons 17189 | . . . . . . . . 206 125 526 1796 1690 321 1517 351 1051 660 14 97 387 734 293 2306 . 293 483 4339 Explosions 8448 | . . . . . 754 . . . . . 58 329 . 642 454 . . . . . 655 . 2223 . 295 976 2062 Melee 863 | . . . . . . . . . . . 360 . . . . . 503 . . . . . . . . . . Ramming 617 | . 1 . . 9 103 . 74 1 . . 80 18 26 7 30 23 . . 8 35 22 45 . . 42 8 85 Kinetic 19576 | 210 39 45 . 110 2698 1137 1001 2134 . 727 1368 796 183 1844 254 753 660 14 97 387 466 254 1495 . 214 215 2475 Thermal 4723 | 269 23 61 . 74 . . . . . . 179 55 . 33 551 298 . . . . 268 39 329 . 295 226 2023 Explosive 6474 | . . . . . 754 . . . . . 58 274 . 642 . . . . . . 655 . 2184 . . 302 1605 Electromagnetic 3804 | . . . . . . . . 118 125 . 345 925 236 178 . . . . . . . . 521 . 101 719 536 Impact 863 | . . . . . . . . . . . 360 . . . . . 503 . . . . . . . . . . Slashing . | . . . . . . . . . . . . . . . . . . . . . . . . . . . . Piercing . | . . . . . . . . . . . . . . . . . . . . . . . . . . . . Highest Corruption 11 | . 2 2 2 2 2 2 2 9 . 1 10 10 1 1 3 3 3 3 1 . . 6 6 6 . 8 11 Average Corruption 3 | . 2 2 2 2 1 2 2 6 . 1 3 6 1 1 2 3 3 2 1 . . 1 4 6 . 6 6 Corruption Purged 24 | . . . . . . . . . . . . 5 . . . . . 3 . . . . 6 . . . 10 Corruption Blocked . | . . . . . . . . . . . . . . . . . . . . . . . . . . . . Effects 405 | . 2 6 13 5 1 26 13 51 . 11 33 59 2 10 1 34 9 1 . . . 1 46 11 . 4 66 Message Errors 94 | . . 1 6 1 . 4 4 13 . 3 6 12 . 8 . 8 1 1 . . . 1 11 3 . 3 8 Matter Fused 90 | . 1 2 3 1 1 7 1 14 . 3 2 13 1 2 . 10 4 . . . . . 8 4 . . 13 Heat Flow Errors 49 | . 1 . . 3 . 3 3 6 . . 3 6 . . . 4 1 . . . . . 5 . . . 14 Energy Discharges 43 | . . 2 1 . . 4 . 4 . 3 7 8 . . 1 6 . . . . . . 4 1 . . 2 Parts Rejected 6 | . . . . . . . . . . . 2 . . . . 1 . . . . . . 2 . . . 1 Parts Fused 7 | . . . 1 . . . . . . . 2 1 . . . . . . . . . . 2 . . . 1 Data Loss (minor) 48 | . . . 2 . . 6 3 7 . 1 3 7 . . . 1 1 . . . . . 6 2 . . 9 Data Loss (major) 24 | . . . . . . 1 . 4 . . 3 6 1 . . 1 2 . . . . . 1 1 . . 4 Misfires 15 | . . . . . . 1 1 1 . 1 1 2 . . . 2 . . . . . . 2 . . . 4 Alerts 12 | . . 1 . . . . 1 2 . . 3 2 . . . . . . . . . . 2 . . . 1 Misdirections 1 | . . . . . . . . . . . . . . . . . . . . . . . . . . . 1 Weapon Failures 16 | . . . . . . . . . . . 1 2 . . . 1 . . . . . . 3 . . 1 8 Overload Shots . | . . . . . . . . . . . . . . . . . . . . . . . . . . . . Overflow Damage 1217 | . . . . . . . . . 2 . 204 29 1 25 169 . 283 . . . 66 9 202 . 8 38 181 Projectiles 274 | . . . . . . . . . 2 . 66 19 1 . 16 . . . . . . 9 31 . 8 32 90 Explosions 540 | . . . . . . . . . . . 18 10 . 25 153 . . . . . 66 . 171 . . 6 91 Melee 403 | . . . . . . . . . . . 120 . . . . . 283 . . . . . . . . . . Knockbacks 81 | . . . . . 1 . 2 1 . 3 8 8 3 8 2 3 . . 1 1 5 3 13 . 7 1 11 Impact 5 | . . . . . 1 . 2 . . . . . 1 . . . . . . . . 1 . . . . . Kinetic 74 | . . . . . . . . 1 . 3 8 8 2 7 2 3 . . 1 . 5 2 13 . 7 1 11 Secondary 2 | . . . . . . . . . . . . . . 1 . . . . . 1 . . . . . . . Self-Inflicted Damage 483 | . . . . . 10 . . . . . 6 . . 164 71 . . . . . 36 . 29 . 32 86 49 Shots 16 | . . . . . 1 . . . . . 1 . . 3 1 . . . . . 1 . 1 . 1 4 3 Rammed 60 | . 1 . . 3 18 . 5 1 . . 11 3 . 1 . 2 . . . 2 3 3 . . 1 1 5 Targets Rammed 72 | . 1 . . 3 19 . 5 1 . . 12 4 1 1 6 2 . . 1 3 3 3 . . 1 1 5 Kicked 6 | . . . . . . . . . . . . . . . 6 . . . . . . . . . . . . Crushed 6 | . . . . . 1 . . . . . 1 1 1 . . . . . 1 1 . . . . . . . Highest Temperature 491 | 40 92 24 . 232 166 344 321 364 . 136 347 306 144 315 402 226 280 9 18 333 72 2 210 . . 66 491 Average Temperature 73 | 16 28 14 . 66 35 84 58 68 . 54 109 81 60 87 92 64 125 6 9 107 19 2 46 . . 30 93 Received Heat Transfer 3430 | . . 4 . 30 290 283 48 236 6 40 315 397 123 986 . 103 4 . . 58 42 75 210 . 45 . 135 Effects 10 | . . . . . . . . 2 . . 3 2 . . 2 . . . . 1 . . . . . . . Energy Bleed 2 | . . . . . . . . 1 . . . . . . . . . . . 1 . . . . . . . Interference 7 | . . . . . . . . 1 . . 2 2 . . 2 . . . . . . . . . . . . Damage (minor) 1 | . . . . . . . . . . . 1 . . . . . . . . . . . . . . . . Siege Activations 15 | . . . . . . . . . . . . . . . . . . . . . . 1 1 . . . 13 Total Turns 316 | . . . . . . . . . . . . . . . . . . . . . . 11 18 . . . 287 Longest Duration 66 | . . . . . . . . . . . . . . . . . . . . . . 11 18 . . . 66 Martial Activations . | . . . . . . . . . . . . . . . . . . . . . . . . . . . . Shielding Activations . | . . . . . . . . . . . . . . . . . . . . . . . . . . . . Robots Disrupted 4 | . . . . . . . . . . . . . . . . . . . . . . . . . 1 . 3 Combat Hostiles 3 | . . . . . . . . . . . . . . . . . . . . . . . . . 1 . 2 Robots Corrupted 16 | . . . . . . . . . . . 1 4 1 . . . 1 . . . . . 1 . . 5 3 Combat Hostiles 11 | . . . . . . . . . . . . 4 . . . . . . . . . . . . . 4 3 Parts Fried 35 | . . . . . . . . 2 1 . 4 9 3 . . . . . . . . . 4 . 3 6 3 Impact Corruptions 10 | . . . . . . . . . . . 3 . . . . . 7 . . . . . . . . . . Robots Melted 1 | . . . . . . . . . . . . . . . . . . . . . . . . . . . 1 Combat Hostiles 1 | . . . . . . . . . . . . . . . . . . . . . . . . . . . 1 Parts Melted 4 | . . . . 1 . 1 . . . . . . . . . . . . . . 1 . . . . 1 . Heat Transferred 3873 | 600 50 125 . 175 . . . . . . 320 50 . 50 350 . . . . . 480 . . . 200 148 1325 Parts Sabotaged . | . . . . . . . . . . . . . . . . . . . . . . . . . . . . Parts Stolen . | . . . . . . . . . . . . . . . . . . . . . . . . . . . . Parts Stripped . | . . . . . . . . . . . . . . . . . . . . . . . . . . . . Power Chain Reactions 3 | . . . . . . . . . . . . 1 . . . . . . . . . . 1 . 1 . . Alert | -11 -10 -10 -10 -9 -8 -8 -8 -8 -7 -7 -7 -7 -6 -6 -5 -5 -5 -5 -5 -4 -4 -4 -4 -4 -3 -2 -1 ------- Run | Yrd Mat Min Exi Min Mat Gar Mat Gar Fac Gar Fac Gar Fac Gar Fac Ext Cet Arc Hub Fac Gar Fac Arm Lab Res Res Acc Maximum Alert Level 4 | . . . . . 2 3 2 4 2 2 1 4 2 3 2 2 2 1 . 1 3 2 3 . . 1 2 Low Security (%) 44 | 100 100 100 . 100 15 . 81 12 . . 50 8 . 36 57 69 . 83 100 91 11 93 54 . 100 84 59 Level 1 21 | . . . . . 52 . . 24 . 30 49 12 21 38 37 13 64 16 . 8 15 3 25 . . 15 13 Level 2 25 | . . . . . 31 62 18 28 100 69 . 34 78 21 5 16 35 . . . 71 3 6 . . . 27 Level 3 7 | . . . . . . 37 . 21 . . . 44 . 3 . . . . . . 1 . 13 . . . . Level 4 . | . . . . . . . . 12 . . . . . . . . . . . . . . . . . . . Level 5 . | . . . . . . . . . . . . . . . . . . . . . . . . . . . . High Security . | . . . . . . . . . . . . . . . . . . . . . . . . . . . . Max Security . | . . . . . . . . . . . . . . . . . . . . . . . . . . . . Peak Influence 1269 | 10 60 70 . 115 667 987 521 1269 665 693 363 1145 602 746 446 542 472 234 170 360 778 408 876 . 109 288 696 Initial 665 | . . . . . 25 414 481 47 665 285 363 122 600 174 391 88 282 147 3 73 127 408 . . . . 161 Average 309 | . 13 13 . 43 364 686 115 579 528 465 189 645 478 341 172 138 375 124 55 97 516 75 292 . 19 48 226 Influence Increases 15306 | 50 70 110 . 175 1216 703 399 1292 13 508 540 1243 157 902 588 1050 340 197 310 749 731 252 1811 . 198 372 1330 Destroy 0b10 Robot/C 8300 | . 60 80 . 120 800 440 260 820 . 220 300 600 60 460 240 480 140 80 80 260 480 140 1000 . 80 200 900 Destroy 0b10 Robot/NC 370 | 50 . . . 5 75 . 15 5 10 . 20 5 15 . 30 25 10 5 10 25 . 10 20 . 5 10 20 Destroy Leader 1128 | . 10 10 . 20 190 10 104 30 . 30 82 50 12 20 44 42 . . 30 52 30 20 162 . 10 40 130 Allied During Kill 1269 | . . . . . . 1 . 1 . 9 . 13 1 14 56 356 150 85 120 305 66 14 33 . . 17 28 Trap Triggered on 0b10 110 | . . 20 . . . . . . . 20 . . 20 . . . . . . 10 . . 40 . . . . Successful Hack 454 | . . . . . 34 14 20 7 2 14 41 12 26 7 8 63 6 . 18 39 10 19 47 . 43 24 . Disable Machine 630 | . . . . . 15 . . 60 . . 30 15 . . 105 30 . 15 30 15 15 15 225 . 15 15 30 Anti-Garrison Action 1400 | . . . . . . 200 . 300 . 200 . 400 . 250 . . . . . . 50 . . . . . . Destroy Structure 970 | . . . . . 42 8 . 9 1 . 37 88 8 46 90 24 34 12 22 28 65 4 194 . 30 66 162 Partial Spotted 30 | . . . . . . . . . . . . 15 . . 15 . . . . . . . . . . . . Lose Combat Pursuer 645 | . . . . 30 60 30 . 60 . 15 30 45 15 105 . 30 . . . 15 15 30 90 . 15 . 60 Influence Decreases 14670 | 50 70 110 . 110 644 353 1313 96 874 223 1058 273 1053 405 1153 726 477 555 170 717 135 1030 935 876 198 102 964 Entered New Map 4911 | . . . . . 40 223 506 26 604 123 330 53 545 75 355 93 223 221 7 77 55 370 . 876 . . 109 Time Decay 6093 | 50 70 110 . 110 584 . 422 . 270 . 568 . 398 . 548 423 214 254 123 350 . 254 570 . 198 82 495 Lost Part 440 | . . . . . 10 10 10 40 . . 10 30 10 150 . . . . . 10 . . 30 . . . 130 Lost Ally 1526 | . . . . . 10 120 . 30 . 100 . 190 100 180 100 60 40 80 40 130 80 106 60 . . 20 80 Purge Threat 1700 | . . . . . . . 375 . . . 150 . . . 150 150 . . . 150 . 300 275 . . . 150 Squads Dispatched 56 | . . . . 1 5 . 2 . 1 . 5 . 4 . 8 3 . . 2 1 . 1 7 . 3 4 9 Investigation 7 | . . . . 1 1 . . . . . . . . . 1 1 . . . . . . 1 . . . 2 Extermination 23 | . . . . . . . . . 1 . 2 . 1 . 3 . . . 1 1 . 1 5 . . 2 6 Reinforcement 12 | . . . . . 1 . 1 . . . . . 1 . 1 . . . 1 . . . 1 . 3 2 1 Assault 8 | . . . . . 3 . . . . . . . 1 . 2 2 . . . . . . . . . . . Garrison 6 | . . . . . . . 1 . . . 3 . 1 . 1 . . . . . . . . . . . . Intercept . | . . . . . . . . . . . . . . . . . . . . . . . . . . . . Searches Triggered . | . . . . . . . . . . . . . . . . . . . . . . . . . . . . Construction Impeded . | . . . . . . . . . . . . . . . . . . . . . . . . . . . . Haulers Reinforced 2 | . . . . . . . . . . . . . . . . . . . . . . . . . 1 1 . Active Scanning Responses . | . . . . . . . . . . . . . . . . . . . . . . . . . . . . Cargo Convoy Interrupts . | . . . . . . . . . . . . . . . . . . . . . . . . . . . . Alert ID Control Effect 9 | . . . . . . . . . . 1 . 4 2 . . . . . . . . . 2 . . . . Stealth | -11 -10 -10 -10 -9 -8 -8 -8 -8 -7 -7 -7 -7 -6 -6 -5 -5 -5 -5 -5 -4 -4 -4 -4 -4 -3 -2 -1 --------- Run | Yrd Mat Min Exi Min Mat Gar Mat Gar Fac Gar Fac Gar Fac Gar Fac Ext Cet Arc Hub Fac Gar Fac Arm Lab Res Res Acc Distress Signals 23 | . . . . . 4 . 3 1 . . 2 5 . . . . . . . . . 3 1 . 2 1 1 Communications Jammed 158 | . . . . . . . . . . . . . 30 . 7 . 67 . . . . . 19 . . 5 30 Distress Signals 158 | . . . . . . . . . . . . . 30 . 7 . 67 . . . . . 19 . . 5 30 Times Spotted 580 | . 6 5 . 9 65 27 27 45 4 15 24 40 18 38 10 30 9 1 4 13 22 20 68 . 5 18 57 Peak Tracking Total 9 | . 3 3 . 4 5 7 4 6 2 4 4 6 9 6 4 8 4 1 3 6 7 8 4 . 4 8 4 Tactical Retreats 36 | . . . . 2 3 2 . 3 . 1 2 3 1 5 . 1 . . . 1 1 2 4 . 1 . 4 Traps | -11 -10 -10 -10 -9 -8 -8 -8 -8 -7 -7 -7 -7 -6 -6 -5 -5 -5 -5 -5 -4 -4 -4 -4 -4 -3 -2 -1 ------- Run | Yrd Mat Min Exi Min Mat Gar Mat Gar Fac Gar Fac Gar Fac Gar Fac Ext Cet Arc Hub Fac Gar Fac Arm Lab Res Res Acc Traps Triggered 58 | . 1 . . . 2 7 . 14 . 9 3 8 1 6 3 2 . . . . . . . . . . 2 Indirectly . | . . . . . . . . . . . . . . . . . . . . . . . . . . . . Trap Hack Attempts 16 | . . . . . . . . 16 . . . . . . . . . . . . . . . . . . . Triggered 1 | . . . . . . . . 1 . . . . . . . . . . . . . . . . . . . Disarmed 17 | . . . . . 3 . . . . . . . . . . 4 . . 10 . . . . . . . . Reprogrammed 10 | . . . . . . . . . . . . . . . . . . . . 6 . . 4 . . . . Reused 11 | . . 2 . . . . . . . 2 . . 2 . . . . . . 1 . . 4 . . . . Traps Extracted . | . . . . . . . . . . . . . . . . . . . . . . . . . . . . Installed 8 | . . 4 . . . . . . . 2 . . 2 . . . . . . . . . . . . . . Triggered 11 | . . 2 . . . . . . . 2 . . 2 . . . . . . 1 . . 4 . . . . Most Traps Carried 10 | . . 1 . . . . . 10 10 10 8 8 8 6 6 6 6 6 6 6 6 6 6 6 6 6 6 Machines | -11 -10 -10 -10 -9 -8 -8 -8 -8 -7 -7 -7 -7 -6 -6 -5 -5 -5 -5 -5 -4 -4 -4 -4 -4 -3 -2 -1 ---------- Run | Yrd Mat Min Exi Min Mat Gar Mat Gar Fac Gar Fac Gar Fac Gar Fac Ext Cet Arc Hub Fac Gar Fac Arm Lab Res Res Acc Machines Disabled 64 | . . . . . 1 2 . 7 . 2 2 3 . 2 7 4 1 1 2 1 2 2 15 6 1 1 2 Max in Single Turn 3 | . . . . . 1 1 . 1 . 1 1 1 . 1 3 1 . . . . 1 1 1 1 1 1 1 Garrison Access 6 | . . . . . . . . . . . 1 . . . 2 . . . . . . 1 . . . . 2 Garrison Relay 12 | . . . . . . 2 . 2 . 2 . 3 . 2 . . . . . . 1 . . . . . . Network Hub 1 | . . . . . . . . . . . . . . . . . . . 1 . . . . . . . . Machines Repaired . | . . . . . . . . . . . . . . . . . . . . . . . . . . . . Machines Dismantled . | . . . . . . . . . . . . . . . . . . . . . . . . . . . . Machines Sabotaged . | . . . . . . . . . . . . . . . . . . . . . . . . . . . . Overloaded Fab Kills . | . . . . . . . . . . . . . . . . . . . . . . . . . . . . Hacking | -11 -10 -10 -10 -9 -8 -8 -8 -8 -7 -7 -7 -7 -6 -6 -5 -5 -5 -5 -5 -4 -4 -4 -4 -4 -3 -2 -1 --------- Run | Yrd Mat Min Exi Min Mat Gar Mat Gar Fac Gar Fac Gar Fac Gar Fac Ext Cet Arc Hub Fac Gar Fac Arm Lab Res Res Acc Machines Accessed 127 | . 2 1 2 1 14 2 6 2 5 2 10 2 6 1 10 19 1 . 1 6 3 3 10 . 3 2 13 Terminals 81 | . 2 . . . 9 2 4 2 . 2 5 2 1 1 4 18 1 . 1 3 3 1 8 . 2 2 8 Fabricators 8 | . . . . . . . . . 1 . . . 2 . 1 . . . . 1 . . 2 . 1 . . Repair Stations 10 | . . . . . 2 . . . 1 . 3 . . . 1 . . . . 1 . 1 . . . . 1 Recycling Units 4 | . . . . . . . . . 1 . . . . . 2 1 . . . . . . . . . . . Scanalyzers 9 | . . . . . 2 . 1 . 1 . . . 2 . 1 . . . . . . . . . . . 2 Garrison Access 11 | . . . . . 1 . 1 . 1 . 2 . 1 . 1 . . . . 1 . 1 . . . . 2 Total Hacks 318 | . 7 1 2 1 45 2 20 4 12 2 29 3 14 4 22 38 1 . 4 17 4 14 21 . 15 5 31 Successful 167 | . 2 1 2 1 20 1 12 1 6 1 14 2 6 1 9 26 1 . 3 10 1 8 15 . 6 4 14 Failed 147 | . 4 . . . 24 1 8 3 6 1 15 1 8 3 12 12 . . 1 7 3 6 6 . 9 1 16 Catastrophic 29 | . . . . . 2 1 2 1 2 . 3 . 3 . . 4 . . . 2 1 2 2 . 2 1 1 Database Lockouts 4 | . 1 . . . 1 . . . . . . . . . 1 . . . . . . . . . . . 1 Manual 118 | . 5 . 1 . 23 . 11 . 3 . 6 . 2 . 6 16 1 . 1 6 2 5 8 . 9 3 10 Terminals 203 | . 7 . . . 29 2 15 4 . 2 15 3 3 4 7 36 1 . 4 9 4 5 15 . 13 5 20 Fabricators 17 | . . . . . . . . . 1 . . . 3 . 2 . . . . 3 . . 6 . 2 . . Repair Stations 32 | . . . . . 6 . . . 2 . 10 . . . 2 . . . . 3 . 7 . . . . 2 Recycling Units 7 | . . . . . . . . . 1 . . . . . 4 2 . . . . . . . . . . . Scanalyzers 30 | . . . . . 6 . 3 . 5 . . . 6 . 5 . . . . . . . . . . . 5 Garrison Access 25 | . . . . . 4 . 2 . 3 . 4 . 2 . 2 . . . . 2 . 2 . . . . 4 Terminal Hacks 80 | . 2 1 2 1 7 1 6 1 . 1 4 2 1 1 1 19 1 . 3 2 1 3 6 . 5 4 5 Record 1 | . . . 1 . . . . . . . . . . . . . . . . . . . . . . . . Part Schematic 2 | . . . . . . . . . . . . . . . . 2 . . . . . . . . . . . Robot Analysis 5 | . 1 . . . 1 . . . . . . . . . . 2 . . . . . . . . . 1 . Prototype ID Bank 2 | . . . . . . . . . . . . . . . . 2 . . . . . . . . . . . Open Door 17 | . . 1 . 1 . . . 1 . . . 1 . 1 1 7 1 . . . . . 2 . . . 1 Level Access Points 4 | . . . . . . . . . . . . . . . . . . . 1 . . . . . 1 1 1 Branch Access Points 3 | . . . . . 1 . . . . . . . . . . . . . . . . 1 . . 1 . . Emergency Access Points 2 | . . . . . . 1 . . . . . 1 . . . . . . . . . . . . . . . Terminal Index 3 | . . . . . . . . . . . . . . . . 1 . . . . . . . . 1 1 . Repair Station Index 1 | . . . . . 1 . . . . . . . . . . . . . . . . . . . . . . Scanalyzer Index 1 | . . . . . . . 1 . . . . . . . . . . . . . . . . . . . . Garrison Index 1 | . . . . . . . . . . . 1 . . . . . . . . . . . . . . . . Unreport Threat 5 | . . . . . . . . . . . . . . . . 1 . . . 1 . 2 . . . . 1 Locate Traps 9 | . 1 . . . 1 . 1 . . . 3 . . . . . . . . . . . 2 . 1 . . Disarm Traps 4 | . . . . . 1 . . . . . . . . . . 1 . . 2 . . . . . . . . Reprogram Traps 2 | . . . . . . . . . . . . . . . . . . . . 1 . . 1 . . . . Recall Investigation 1 | . . . . . . . . . . . . . . . . 1 . . . . . . . . . . . Recall Assault 1 | . . . . . . . . . . . . . . . . 1 . . . . . . . . . . . Hauler Manifests 2 | . . . . . 1 . 1 . . . . . . . . . . . . . . . . . . . . Registered Components 1 | . . . . . . . . . . . . . . . . . . . . . . . . . 1 . . Registered Prototypes 1 | . . . . . . . . . . . . . . . . . . . . . . . . . . . 1 Zone Layout 9 | . . . . . 1 . 3 . . . . . 1 . . 1 . . . . . . 1 . . 1 1 Garrison Registry 1 | . . . . . . . . . . . . . . . . . . . . . 1 . . . . . . Patrol Navigation 1 | . . . . . . . . . . 1 . . . . . . . . . . . . . . . . . Proto ID Catalog 1 | . . . 1 . . . . . . . . . . . . . . . . . . . . . . . . Fabricator Hacks 9 | . . . . . . . . . . . . . 2 . . . . . . 1 . . 5 . 1 . . Network Status 3 | . . . . . . . . . . . . . 1 . . . . . . 1 . . . . 1 . . Load Schematic 2 | . . . . . . . . . . . . . . . . . . . . . . . 2 . . . . Build 4 | . . . . . . . . . . . . . 1 . . . . . . . . . 3 . . . . Repair Station Hacks 16 | . . . . . 4 . . . 1 . 5 . . . 1 . . . . 2 . 3 . . . . . Scan Component 11 | . . . . . 2 . . . 1 . 4 . . . 1 . . . . 1 . 2 . . . . . Repair 5 | . . . . . 2 . . . . . 1 . . . . . . . . 1 . 1 . . . . . Recycling Unit Hacks 5 | . . . . . . . . . . . . . . . 3 2 . . . . . . . . . . . Process 2 | . . . . . . . . . . . . . . . 1 1 . . . . . . . . . . . Retrieve Matter 2 | . . . . . . . . . . . . . . . 1 1 . . . . . . . . . . . Retrieve Components 1 | . . . . . . . . . . . . . . . 1 . . . . . . . . . . . . Scanalyzer 17 | . . . . . 4 . 3 . 4 . . . 2 . 1 . . . . . . . . . . . 3 Insert Component 4 | . . . . . 2 . . . 1 . . . . . . . . . . . . . . . . . 1 Analyze 3 | . . . . . 2 . . . 1 . . . . . . . . . . . . . . . . . . Retrieve Study 10 | . . . . . . . 3 . 2 . . . 2 . 1 . . . . . . . . . . . 2 Garrison Access Hacks 16 | . . . . . 1 . 1 . 1 . 3 . 1 . 2 . . . . 1 . 2 . . . . 4 Unlock Access 6 | . . . . . 1 . 1 . 1 . 1 . 1 . . . . . . 1 . . . . . . . Seal Access 5 | . . . . . . . . . . . 1 . . . 1 . . . . . . 1 . . . . 2 Coupler Status 5 | . . . . . . . . . . . 1 . . . 1 . . . . . . 1 . . . . 2 Unauthorized Hacks 24 | . . . . . 4 . 2 . . . 2 . . . 1 5 . . . 4 . . 4 . . . 2 Terminals 19 | . . . . . 4 . 2 . . . 1 . . . 1 5 . . . 1 . . 4 . . . 1 Track 1 | . . . . . . . . . . . . . . . . 1 . . . . . . . . . . . Assimilate 5 | . . . . . 2 . . . . . . . . . . 1 . . . . . . 2 . . . . Botnet 9 | . . . . . 1 . 1 . . . 1 . . . 1 2 . . . 1 . . 1 . . . 1 Disrupt 2 | . . . . . 1 . 1 . . . . . . . . . . . . . . . . . . . . Operators 2 | . . . . . . . . . . . . . . . . 1 . . . . . . 1 . . . . Fabricators 2 | . . . . . . . . . . . . . . . . . . . . 2 . . . . . . . Liberate 1 | . . . . . . . . . . . . . . . . . . . . 1 . . . . . . . Haulers 1 | . . . . . . . . . . . . . . . . . . . . 1 . . . . . . . Repair Stations 2 | . . . . . . . . . . . 1 . . . . . . . . . . . . . . . 1 Mechanics 1 | . . . . . . . . . . . 1 . . . . . . . . . . . . . . . . Patch 1 | . . . . . . . . . . . . . . . . . . . . . . . . . . . 1 Recycling Units . | . . . . . . . . . . . . . . . . . . . . . . . . . . . . Scanalyzers . | . . . . . . . . . . . . . . . . . . . . . . . . . . . . Garrison Access 1 | . . . . . . . . . . . . . . . . . . . . 1 . . . . . . . Reprogram 1 | . . . . . . . . . . . . . . . . . . . . 1 . . . . . . . Data Cores Recovered 2 | . . . . . . . . . . . . . . . . . . . . 1 . . . . 1 . . Used . | . . . . . . . . . . . . . . . . . . . . . . . . . . . . Hacking Detections 98 | . 2 . . . 14 2 6 1 4 2 9 1 6 1 7 15 1 . 1 4 2 2 4 . 2 2 10 Full Trace Events 7 | . 1 . . . 2 . . . . . . . . 1 1 1 . . . . . . . . . . 1 Feedback Events 1 | . . . . . . . . . . . . . . . . . . . . . . . . . . . 1 Hackware Fried 1 | . . . . . . . . . . . . . . . . . . . . . . . . . . . 1 Feedback Blocked . | . . . . . . . . . . . . . . . . . . . . . . . . . . . . Robot Schematics Acquired . | . . . . . . . . . . . . . . . . . . . . . . . . . . . . Robots Built . | . . . . . . . . . . . . . . . . . . . . . . . . . . . . Authchips . | . . . . . . . . . . . . . . . . . . . . . . . . . . . . Time . | . . . . . . . . . . . . . . . . . . . . . . . . . . . . Total Robot Build Rating . | . . . . . . . . . . . . . . . . . . . . . . . . . . . . Part Schematics Acquired 5 | . . . . . 2 . . . 1 . . . . . . 2 . . . . . . . . . . . Parts Built 6 | . . . . . . . . . . . . . 2 . . . . . . . . . 4 . . . . Authchips 2 | . . . . . . . . . . . . . . . . . . . . . . . 2 . . . . Time 245 | . . . . . . . . . . . . . 53 . . . . . . . . . 192 . . . . Total Part Build Rating 44 | . . . . . . . . . . . . . 12 . . . . . . . . . 32 . . . . Part Studies Acquired 10 | . . . . . . . 3 . 2 . . . 2 . 1 . . . . . . . . . . . 2 Parts Repaired 5 | . . . . . 2 . . . . . 1 . . . . . . . . 1 . 1 . . . . . Time 219 | . . . . . 82 . . . . . 70 . . . . . . . . 28 . 39 . . . . . Parts Recycled . | . . . . . . . . . . . . . . . . . . . . . . . . . . . . Recycled Matter 378 | . . . . . . . . . . . . . . . 204 174 . . . . . . . . . . . Retrieved Matter 647 | . . . . . . . . . . . . . . . 331 316 . . . . . . . . . . . Retrieved Components 9 | . . . . . . . . . . . . . . . 9 . . . . . . . . . . . . Parts Scanalyzed 3 | . . . . . 2 . . . 1 . . . . . . . . . . . . . . . . . . Part Schematics Acquired 3 | . . . . . 2 . . . 1 . . . . . . . . . . . . . . . . . . Parts Damaged 2 | . . . . . 1 . . . 1 . . . . . . . . . . . . . . . . . . Bothacking | -11 -10 -10 -10 -9 -8 -8 -8 -8 -7 -7 -7 -7 -6 -6 -5 -5 -5 -5 -5 -4 -4 -4 -4 -4 -3 -2 -1 ------------ Run | Yrd Mat Min Exi Min Mat Gar Mat Gar Fac Gar Fac Gar Fac Gar Fac Ext Cet Arc Hub Fac Gar Fac Arm Lab Res Res Acc Used RIF Installer 9 | . . . . . . 2 . 1 . 1 . 1 . 2 . . . . . . 2 . . . . . . Coupler Efficiency 1 | . . . . . . . . . . . . . . 1 . . . . . . . . . . . . . Command Fork 1 | . . . . . . . . . . . . . . . . . . . . . 1 . . . . . . Signal Jammer 1 | . . . . . . . . . . . . 1 . . . . . . . . . . . . . . . Watcher Feeds 1 | . . . . . . . . 1 . . . . . . . . . . . . . . . . . . . Patrol Navigation 1 | . . . . . . . . . . . . . . . . . . . . . 1 . . . . . . Alert ID Control 1 | . . . . . . 1 . . . . . . . . . . . . . . . . . . . . . Structural Interface 1 | . . . . . . . . . . . . . . 1 . . . . . . . . . . . . . Program Shield 1 | . . . . . . . . . . 1 . . . . . . . . . . . . . . . . . Robots Hacked 72 | . . . . . . 3 1 . 2 5 2 10 9 9 4 5 . 1 2 2 . 3 6 . 1 2 5 Non-combat 19 | . . . . . . . 1 . 1 . 1 . 3 . 4 2 . . 2 1 . . 1 . . . 3 Combat 53 | . . . . . . 3 . . 1 5 1 10 6 9 . 3 . 1 . 1 . 3 5 . 1 2 2 Robot Hacks Applied 85 | . . . . . . 3 4 . 3 5 4 10 11 9 5 6 . 1 2 2 . 3 9 . 1 2 5 parse_system 4 | . . . . . . . . . . . . . . . . 1 . 1 . . . . 1 . 1 . . deconstruct_machine 1 | . . . . . . . . . . . . . . . 1 . . . . . . . . . . . . drop_inventory 4 | . . . . . . . . . . . . . 2 . 1 . . . . 1 . . . . . . . purge_threat 7 | . . . . . . . 3 . . . 1 . . . 1 . . . . . . . 2 . . . . block_reporting 2 | . . . . . . . . . . . 1 . . . . 1 . . . . . . . . . . . map_route 1 | . . . . . . . . . . . . . . . . . . . . . . . . . . . 1 redirect_shields 1 | . . . . . . . . . . . . . 1 . . . . . . . . . . . . . . find_garrison 2 | . . . . . . . . . 1 . . . 1 . . . . . . . . . . . . . . scatter_targeting 1 | . . . . . . . . . . . . . 1 . . . . . . . . . . . . . . spike_heat 2 | . . . . . . . . . . . . 2 . . . . . . . . . . . . . . . overload_power 3 | . . . . . . . . . . . . . . 1 . . . . 1 . . . 1 . . . . amplify_resonance 1 | . . . . . . . . . . . . . . 1 . . . . . . . . . . . . . overwrite_iff 21 | . . . . . . 3 . . . 1 . 5 2 6 . 2 . . . . . 1 1 . . . . streamctrl_low 1 | . . . . . . . . . . . . . . . . . . . . . . . . . . . 1 streamctrl_high 4 | . . . . . . . . . . . 1 . . . . . . . . . . 2 1 . . . . formatsys_low 7 | . . . . . . . 1 . 1 . 1 . 1 . 2 . . . . . . . . . . . 1 formatsys_high 23 | . . . . . . . . . 1 4 . 3 3 1 . 2 . . 1 1 . . 3 . . 2 2 Relay Couplers Released 63 | . . . . . . 9 . 8 . 9 3 10 . 8 3 . . . . . 5 4 . . . 3 1 Machine Destruction 54 | . . . . . . 6 . 8 . 9 . 10 . 8 3 . . . . . 5 4 . . . . 1 Programmers 9 | . . . . . . 3 . . . . 3 . . . . . . . . . . . . . . 3 . Attached 31 | . . . . . . 1 2 . 2 3 1 5 3 1 2 2 . . . 1 1 . 4 . . 1 2 Fabnet Peak Effective % . | . . . . . . . . . . . . . . . . . . . . . . . . . . . . Robots Rewired 22 | . . . . . . 3 . . . . . . . 3 . 10 1 . . . . . 2 . . . 3 Allies Hacked 6 | . . . . . . 2 . . . 1 . 1 . . . . . . . . . . . . . . 2 Hacks Repelled . | . . . . . . . . . . . . . . . . . . . . . . . . . . . . Allies | -11 -10 -10 -10 -9 -8 -8 -8 -8 -7 -7 -7 -7 -6 -6 -5 -5 -5 -5 -5 -4 -4 -4 -4 -4 -3 -2 -1 -------- Run | Yrd Mat Min Exi Min Mat Gar Mat Gar Fac Gar Fac Gar Fac Gar Fac Ext Cet Arc Hub Fac Gar Fac Arm Lab Res Res Acc Total Allies 114 | . . . . . 1 7 2 2 2 5 2 12 6 14 2 26 6 . 1 1 4 3 8 . . 2 8 Largest Group 22 | . . . . . 1 3 2 1 1 2 1 3 4 5 5 22 21 20 17 10 3 3 3 . . 2 3 Highest-Rated Group 1039 | . . . . . 10 16 39 39 32 32 32 201 59 167 167 740 1039 887 748 519 281 182 141 . . 138 109 Highest-Rated Ally 159 | . . . . . 10 16 29 39 32 32 32 95 32 51 51 159 159 96 96 96 96 90 64 . . 69 64 Total Orders 35 | . . . . . . . 8 1 . 1 5 5 1 1 . 3 2 . . . . . 2 . . 1 5 STAY 22 | . . . . . . . 4 1 . . 3 3 1 1 . 2 1 . . . . . 2 . . 1 3 ROAM 1 | . . . . . . . . . . 1 . . . . . . . . . . . . . . . . . FOLLOW 11 | . . . . . . . 4 . . . 2 2 . . . 1 1 . . . . . . . . . 1 AID 1 | . . . . . . . . . . . . . . . . . . . . . . . . . . . 1 Ally Attacks 628 | . . . . 3 3 37 . 21 . 30 3 60 21 51 32 93 48 36 30 43 31 18 39 . . 8 21 Total Damage 14835 | . . . . 12 12 303 . 293 . 382 18 1430 581 886 895 1709 1359 774 1060 1110 891 401 1501 . . 510 708 Kills 82 | . . . . . . . . 1 . 2 . 8 3 4 8 14 4 4 3 9 7 2 10 . . 1 2 Allies Corrupted 9 | . . . . . . . . . . . 1 1 . . . . 1 . 1 1 1 . 1 . . . 2 Allies Melted 1 | . . . . . . . . . . . . . . 1 . . . . . . . . . . . . . Intel | -11 -10 -10 -10 -9 -8 -8 -8 -8 -7 -7 -7 -7 -6 -6 -5 -5 -5 -5 -5 -4 -4 -4 -4 -4 -3 -2 -1 ------- Run | Yrd Mat Min Exi Min Mat Gar Mat Gar Fac Gar Fac Gar Fac Gar Fac Ext Cet Arc Hub Fac Gar Fac Arm Lab Res Res Acc Active Infowar (turns) 2 | . . . . . . . . . . . . . . . . 2 . . . . . . . . . . . T.N.C. 2 | . . . . . . . . . . . . . . . . 2 . . . . . . . . . . . Robot Analysis Total 5 | . 1 . . . 1 . . . . . . . . . . 2 . . . . . . . . . 1 . Derelict Logs Recovered 2 | . . 1 . 1 . . . . . . . . . . . . . . . . . . . . . . . Drone Launches 29 | . . . . 3 3 4 . 1 . . 3 . . 15 . . . . . . . . . . . . . Drone Recoveries 27 | . . . . 3 3 4 . 1 . . 3 . . 13 . . . . . . . . . . . . . Exploration | -11 -10 -10 -10 -9 -8 -8 -8 -8 -7 -7 -7 -7 -6 -6 -5 -5 -5 -5 -5 -4 -4 -4 -4 -4 -3 -2 -1 ------------- Run | Yrd Mat Min Exi Min Mat Gar Mat Gar Fac Gar Fac Gar Fac Gar Fac Ext Cet Arc Hub Fac Gar Fac Arm Lab Res Res Acc Turns Passed 31477 | 509 303 509 556 338 2640 1590 1265 1824 599 1280 1716 2108 941 1526 2088 1940 456 552 327 797 864 563 1794 353 859 545 2635 Spaces Moved 12509 | 243 172 291 283 115 960 574 522 729 255 510 599 823 374 518 847 751 175 94 159 409 417 231 770 138 344 208 998 Core 2 | 2 . . . . . . . . . . . . . . . . . . . . . . . . . . . Treads 11396 | 241 172 291 283 115 960 574 522 729 255 510 599 823 374 151 103 751 175 94 159 409 417 231 770 138 344 208 998 Legs 1111 | . . . . . . . . . . . . . . 367 744 . . . . . . . . . . . . Wheels . | . . . . . . . . . . . . . . . . . . . . . . . . . . . . Hover . | . . . . . . . . . . . . . . . . . . . . . . . . . . . . Flight . | . . . . . . . . . . . . . . . . . . . . . . . . . . . . Fastest Speed 50 | 50 160 160 160 240 160 235 195 190 202 202 206 206 196 190 186 165 163 163 163 162 162 162 162 166 173 173 158 Average Speed 194 | 159 160 160 192 240 220 235 211 194 202 205 206 206 196 220 193 217 172 163 163 162 162 162 163 172 212 173 172 Slowest Speed 680 | 160 160 160 240 240 240 240 235 200 202 206 208 220 206 680 246 232 225 163 163 163 162 162 166 173 255 173 173 Overloaded Moves . | . . . . . . . . . . . . . . . . . . . . . . . . . . . . Propulsion Burnouts . | . . . . . . . . . . . . . . . . . . . . . . . . . . . . Robots Hopped . | . . . . . . . . . . . . . . . . . . . . . . . . . . . . Potential Cave-ins . | . . . . . . . . . . . . . . . . . . . . . . . . . . . . Cave-ins Triggered 2 | . . . . . . . . 1 . . . . . . . . . . . . . . . . . . 1 Teleports 1 | . . . . . . . . . . . . . . . . . . . . . . . . . . . 1 Exploration Rate (%) 47 | 13 35 61 60 35 81 73 45 79 10 74 20 87 16 48 33 83 70 74 33 15 80 9 49 91 12 9 42 Regions Visited 27 Branch Regions 9 Pre-discovered Areas 1 | . . . 1 . . . . . . . . . . . . . . . . . . . . . . . . Known Exits Taken 10 | . . . . . 1 . 1 . 1 . 1 . 1 . . . . . 1 1 . 1 . . 1 1 . Unknown Exits Taken 11 | 1 1 1 1 1 . . . . . . . . . . 1 1 1 1 . . . . 1 1 . . . Scrap Searched 1 | . . . . 1 . . . . . . . . . . . . . . . . . . . . . . . Spaces Dug 145 | . . . . . . 3 . 4 3 . 22 . 6 33 10 2 . . . 1 2 2 13 2 19 4 19 Terrain Destroyed 463 | . . . . . 42 3 . 4 3 . 33 28 8 50 41 3 . . . 5 30 2 86 2 20 21 82 Melee 17 | . . . . . . 3 . 4 . . 5 . . . . . . . . . . . 4 1 . . . Projectile 122 | . . . . . . . . . 3 . 14 1 8 3 18 3 . . . 5 3 2 13 1 8 4 36 AOE 321 | . . . . . 42 . . . . . 14 27 . 47 23 . . . . . 27 . 69 . 12 17 43 Terrain Rammed . | . . . . . . . . . . . . . . . . . . . . . . . . . . . . Walls Destroyed . | . . . . . . . . . . . . . . . . . . . . . . . . . . . . Machines Disabled . | . . . . . . . . . . . . . . . . . . . . . . . . . . . . Actions | -11 -10 -10 -10 -9 -8 -8 -8 -8 -7 -7 -7 -7 -6 -6 -5 -5 -5 -5 -5 -4 -4 -4 -4 -4 -3 -2 -1 --------- Run | Yrd Mat Min Exi Min Mat Gar Mat Gar Fac Gar Fac Gar Fac Gar Fac Ext Cet Arc Hub Fac Gar Fac Arm Lab Res Res Acc Total 17768 | 300 189 321 296 151 1327 738 637 994 330 703 957 1123 541 794 1258 963 278 489 218 509 539 389 1113 210 426 359 1616 Wait 2935 | 13 . . . 11 216 66 47 102 51 118 240 161 88 92 289 97 57 388 51 57 61 119 105 19 22 110 355 Move 12484 | 242 171 290 282 114 960 573 521 728 254 509 599 822 374 517 846 750 174 93 158 408 416 230 769 137 343 207 997 Hop . | . . . . . . . . . . . . . . . . . . . . . . . . . . . . Pick Up 204 | 4 6 5 6 8 16 7 9 10 3 4 10 11 5 15 16 7 4 . . 10 2 5 14 6 4 2 15 Fast Attach 129 | 6 1 2 2 . 14 . 4 6 . 2 7 7 5 12 14 4 3 1 . 1 3 2 16 4 2 3 8 Attach 76 | . . . . . 4 2 1 3 2 . 1 7 3 10 7 2 . . . 2 . . 10 1 3 4 14 Detach 47 | . . 1 . . 6 . . 1 . 1 1 2 2 2 8 4 . 1 . . 1 . 7 3 1 3 3 Swap 303 | . 1 3 1 3 10 18 11 29 9 12 15 21 14 12 12 13 7 3 2 7 12 6 37 5 7 7 26 Drop 198 | . 3 7 5 . 15 8 14 14 1 5 7 9 7 8 26 7 9 1 . 5 5 6 21 5 4 1 5 Fire 1065 | 35 6 9 . 12 67 24 20 57 6 25 50 74 38 69 32 69 17 2 5 16 36 18 117 14 38 21 188 Melee 88 | . . . . . . 20 4 10 3 3 14 . . . 2 4 7 . . . . . 4 16 1 . . Ram . | . . . . . . . . . . . . . . . . . . . . . . . . . . . . Kick 6 | . . . . . . . . . . . . . . . 6 . . . . . . . . . . . . Crush 66 | . 1 . . 3 19 . 5 1 . . 12 4 1 1 . 2 . . 1 3 3 3 . . 1 1 5 Escape Stasis 75 | . . . . . . 14 . 17 . 18 . 4 . 18 . 4 . . . . . . . . . . . Rewire 68 | . . . . . . 6 1 . 1 4 1 1 2 38 . . . . 1 . . . 13 . . . . Trap 24 | . . 4 . . . . . 16 . 2 . . 2 . . . . . . . . . . . . . . Miscellaneous . | . . . . . . . . . . . . . . . . . . . . . . . . . . . . Route ------- -11/Scrapyard -10/Materials -10/Mines (discovered 3 exits: [*Mat x2] / *Exi) -10/Exiles -9/Mines -8/Materials (discovered 4 exits: *Fac x3 / Gar) -8/Garrison (discovered 3 exits: *Mat x3) -8/Materials (discovered 2 exits: *Fac / Gar) -8/Garrison (discovered 3 exits: *Fac x3) -7/Factory -7/Garrison (discovered 3 exits: *Fac x3) -7/Factory -7/Garrison (discovered 3 exits: *Fac x3) -6/Factory (discovered 3 exits: Fac / [*Low] / Gar) -6/Garrison -5/Factory (discovered 2 exits: [*Upp] / *Ext) -5/Extension (discovered 2 exits: *Fac / *Cet) -5/Cetus (discovered 2 exits: *Fac / [*Arc]) -5/Archives (discovered 2 exits: *Hub x2) -5/Hub_04(d) (discovered 4 exits: *Fac x4) -4/Factory -4/Garrison (discovered 4 exits: *Res x3 / *Fac) -4/Factory (discovered 3 exits: Upp x2 / *Arm) -4/Armory (discovered 2 exits: Res / [*Lab]) -4/Lab -3/Research (discovered 5 exits: *Res x3 / *Tes x2) -2/Research (discovered 3 exits: *Acc x3) -1/Access To Epsilon Eridani History --------- Turn | Location | Event 52 | -11/Scrapyard | Discovered new exit (range 16) 510 | -11/Scrapyard | Entered Materials 511 | -10/Materials | Build established: Mutant 690 | -10/Materials | Discovered new exit (range 14) 773 | -10/Materials | Central database locked down 813 | -10/Materials | Entered Mines 935 | -10/Mines | Discovered new exit (range 15) 949 | -10/Mines | Found a hidden stash of uninstalled traps 1066 | -10/Mines | Learned 4 Materials zone layouts 1183 | -10/Mines | Found the Drone Emporium 1190 | -10/Mines | Found Prototype Device 1190 | -10/Mines | Identified Splice Drone Bay 1210 | -10/Mines | Discovered new exit (range 10) 1313 | -10/Mines | Deemed a non-threat by the Exiles lab entrance 1313 | -10/Mines | Discovered new exit (range 5) 1322 | -10/Mines | Entered Exiles 1360 | -10/Exiles | Met 8R-AWN 1389 | -10/Exiles | Met EX-HEX 1471 | -10/Exiles | Met EX-DEC 1496 | -10/Exiles | Learned location of Zion (-7) 1525 | -10/Exiles | Met EX-BIN 1547 | -10/Exiles | Aligned with FarCom system 1549 | -10/Exiles | Given EX-Vault access code 1587 | -10/Exiles | Opened EX-Vault 1601 | -10/Exiles | Found XL Autogun Array 1609 | -10/Exiles | Found Gui. Plasma Cannon 1663 | -10/Exiles | Warned to stay clear of 0b10 Research branches 1847 | -10/Exiles | Discovered new exit (range 14) 1878 | -10/Exiles | Left Exiles lab with Gui. Plasma Cannon 1878 | -10/Exiles | Entered Mines 2026 | -9/Mines | Met a Derelict shopkeep closing up shop 2180 | -9/Mines | Discovered new exit (range 14) 2192 | -9/Mines | Learned 4 Materials zone layouts 2216 | -9/Mines | Entered Materials 2216 | -8/Materials | Evolved 4 slots: Propulsion x1, Utility x2, Weapon x1 2217 | -8/Materials | Identified exit to Factory 2677 | -8/Materials | Build established: Tank 2978 | -8/Materials | Repaired Flak Gun 3362 | -8/Materials | Central database locked down 3823 | -8/Materials | Repaired Imp. Light Armor Plating 4216 | -8/Materials | First assault squad dispatched 4856 | -8/Materials | Identified exit to Garrison 4856 | -8/Materials | Entered Garrison 4872 | -8/Garrison | Triggered checkpoint 4920 | -8/Garrison | Discovered new exit (range 5) 5067 | -8/Garrison | Lost 3 allies 5082 | -8/Garrison | Triggered checkpoint 5144 | -8/Garrison | Installed Relay Interface Framework 5168 | -8/Garrison | Garrison Relay disabled 5296 | -8/Garrison | Triggered checkpoint 5359 | -8/Garrison | Lost 3 allies 5592 | -8/Garrison | Discovered new exit (range 10) 5692 | -8/Garrison | Triggered checkpoint 5834 | -8/Garrison | Triggered checkpoint 6020 | -8/Garrison | Triggered checkpoint 6096 | -8/Garrison | Expanded RIF knowledge: Alert ID Control 6136 | -8/Garrison | Discovered new exit (range 3) 6188 | -8/Garrison | Garrison Relay disabled 6284 | -8/Garrison | Triggered checkpoint 6446 | -8/Garrison | Entered Materials 6522 | -8/Materials | Build established: Bothacker-Tank 6977 | -8/Materials | Build established: Skirmisher 7515 | -8/Materials | Discovered exit to Factory (range 6) 7648 | -8/Materials | Garrison activated, responded to threat 7687 | -8/Materials | Botcube activated 7693 | -8/Materials | Botcube completed mutation into core form, armed with 1 gun. 7705 | -8/Materials | Identified exit to Garrison 7711 | -8/Materials | Entered Garrison 7711 | -8/Garrison | Accompanied by 1 ally 7817 | -8/Garrison | Triggered checkpoint 7947 | -8/Garrison | Garrison Relay disabled 8097 | -8/Garrison | Crushed by falling debris 8097 | -8/Garrison | Core integrity fell below 50% 8269 | -8/Garrison | Triggered checkpoint 8353 | -8/Garrison | Discovered exit to Factory (range 8) 8370 | -8/Garrison | Build established: Tank 8389 | -8/Garrison | Triggered checkpoint 8511 | -8/Garrison | Triggered checkpoint 8577 | -8/Garrison | Discovered exit to Factory (range 12) 8665 | -8/Garrison | Triggered checkpoint 8708 | -8/Garrison | Rescued a captive Derelict 8752 | -8/Garrison | Expanded RIF knowledge: Watcher Feeds 8827 | -8/Garrison | Triggered checkpoint 9039 | -8/Garrison | Triggered checkpoint 9054 | -8/Garrison | Triggered checkpoint 9132 | -8/Garrison | Destroyed 8 combat bots 9139 | -8/Garrison | Lost 3 parts (2u1w) 9159 | -8/Garrison | Triggered checkpoint 9291 | -8/Garrison | Triggered checkpoint 9307 | -8/Garrison | Garrison Relay disabled 9518 | -8/Garrison | Discovered exit to Factory (range 10) 9535 | -8/Garrison | Entered Factory 9535 | -7/Factory | Evolved 2 slots: Propulsion x1, Utility x1 9783 | -7/Factory | Build established: Bothacker-Tank 10086 | -7/Factory | Identified exit to Garrison 10134 | -7/Factory | Entered Garrison 10161 | -7/Garrison | Garrison Relay disabled 10188 | -7/Garrison | Triggered checkpoint 10425 | -7/Garrison | Garrison Relay disabled 10530 | -7/Garrison | Build established: Trapper-Tank 10616 | -7/Garrison | Triggered checkpoint 10700 | -7/Garrison | Discovered new exit (range 12) 10717 | -7/Garrison | Expanded RIF knowledge: Program Shield 10758 | -7/Garrison | Triggered checkpoint 10942 | -7/Garrison | Triggered checkpoint 11081 | -7/Garrison | Triggered checkpoint 11132 | -7/Garrison | Discovered new exit (range 12) 11192 | -7/Garrison | Triggered checkpoint 11365 | -7/Garrison | Discovered new exit (range 10) 11414 | -7/Garrison | Entered Factory 11812 | -7/Factory | Repaired Broken Lrn. Missile Launcher 12285 | -7/Factory | Build established: Trapper-Mutant 12631 | -7/Factory | Build established: Trapper-Skirmisher 12750 | -7/Factory | Garrison activated, responded to threat 13026 | -7/Factory | System corruption reached 10% 13130 | -7/Factory | Identified exit to Garrison 13130 | -7/Factory | Entered Garrison 13130 | -7/Garrison | Accompanied by 1 ally 13208 | -7/Garrison | Rescued a captive Derelict 13212 | -7/Garrison | Rescued a captive Derelict 13471 | -7/Garrison | Build established: Trapper-Tank 13526 | -7/Garrison | Destroyed 7 combat bots 13554 | -7/Garrison | Triggered checkpoint 13565 | -7/Garrison | Garrison Relay disabled 13750 | -7/Garrison | Triggered checkpoint 13879 | -7/Garrison | Build established: Bothacker-Skirmisher 14004 | -7/Garrison | Found embedded Infiltrators 14207 | -7/Garrison | Discovered new exit (range 14) 14273 | -7/Garrison | Expanded RIF knowledge: Signal Jamming 14283 | -7/Garrison | Core integrity fell below 50% 14363 | -7/Garrison | Garrison Relay disabled 14426 | -7/Garrison | Triggered checkpoint 14598 | -7/Garrison | Triggered checkpoint 14639 | -7/Garrison | Garrison Relay disabled 14687 | -7/Garrison | Triggered checkpoint 14710 | -7/Garrison | Discovered new exit (range 14) 14806 | -7/Garrison | Triggered checkpoint 14897 | -7/Garrison | Discovered new exit (range 12) 14956 | -7/Garrison | Triggered checkpoint 15033 | -7/Garrison | Found Powered Armor 15037 | -7/Garrison | Found Powered Armor 15238 | -7/Garrison | Entered Factory 15238 | -6/Factory | Accompanied by 1 ally 15238 | -6/Factory | Evolved 2 slots: Power x1, Utility x1 15298 | -6/Factory | Discovered new exit (range 7) 15444 | -6/Factory | Build established: Bothacker-Gunner 15609 | -6/Factory | Discovered new exit (range 15) 15938 | -6/Factory | First assault squad dispatched 16020 | -6/Factory | Fabricated Hyp. Gauss Cannon? 16153 | -6/Factory | Garrison activated, responded to threat 16173 | -6/Factory | Identified exit to Garrison 16179 | -6/Factory | Entered Garrison 16179 | -6/Garrison | Accompanied by 1 ally 16196 | -6/Garrison | Lost 4 allies 16279 | -6/Garrison | Triggered checkpoint 16326 | -6/Garrison | Lost 3 allies 16345 | -6/Garrison | Expanded RIF knowledge: Coupler Efficiency 16461 | -6/Garrison | Triggered checkpoint 16501 | -6/Garrison | Spotted B-75 Beast 16559 | -6/Garrison | Triggered checkpoint 16589 | -6/Garrison | Destroyed B-75 Beast 16643 | -6/Garrison | Lost 11 parts (2p4n3u2w) 16811 | -6/Garrison | Triggered checkpoint 16882 | -6/Garrison | Expanded RIF knowledge: Structural Interface 16977 | -6/Garrison | Triggered checkpoint 17291 | -6/Garrison | Discovered new exit (range 10) 17435 | -6/Garrison | Triggered checkpoint 17449 | -6/Garrison | Build established: Scavenger-Gunner 17524 | -6/Garrison | Garrison Relay disabled 17652 | -6/Garrison | Rescued a captive Derelict 17654 | -6/Garrison | Rescued a captive Derelict 17705 | -6/Garrison | Entered Factory 17705 | -5/Factory | Accompanied by 5 allies 17705 | -5/Factory | Evolved 2 slots: Propulsion x1, Utility x1 17839 | -5/Factory | Build established: Botlord-Gunner 17890 | -5/Factory | Discovered new exit (range 5) 18326 | -5/Factory | Found Prototype Processor 18326 | -5/Factory | Identified Exp. Targeting Computer 18433 | -5/Factory | Garrison activated, responded to threat 18468 | -5/Factory | Lost 3 allies 18763 | -5/Factory | Central database locked down 19705 | -5/Factory | Discovered new exit (range 10) 19793 | -5/Factory | Entered Extension 19835 | -5/Extension | Build established: Botlord-Tank 20280 | -5/Extension | Spotted B-75 Beast 20406 | -5/Extension | Rescued a captive Derelict 20407 | -5/Extension | Rescued a captive Derelict 20443 | -5/Extension | Rescued a captive Derelict 20591 | -5/Extension | Rescued A7 20651 | -5/Extension | Rescued a captive Derelict 20652 | -5/Extension | Rescued a captive Derelict 20687 | -5/Extension | Rescued a captive Derelict 20688 | -5/Extension | Rescued a captive Derelict 20962 | -5/Extension | Spotted B-75 Beast 20970 | -5/Extension | Allies destroyed B-75 Beast 21121 | -5/Extension | Rescued a captive Derelict 21183 | -5/Extension | Rescued a captive Derelict 21184 | -5/Extension | Rescued a captive Derelict 21293 | -5/Extension | First assault squad dispatched 21466 | -5/Extension | Rescued a captive Derelict 21466 | -5/Extension | Rescued a captive Derelict 21601 | -5/Extension | Lost 3 allies 21659 | -5/Extension | Discovered new exit (range 10) 21664 | -5/Extension | Discovered new exit (range 6) 21733 | -5/Extension | Entered Cetus 21733 | -5/Cetus | Accompanied by 18 allies (A7) 21738 | -5/Cetus | Acquired a Cetus Manufacturing Module code from A7 21771 | -5/Cetus | Spotted Cetus Guard 21771 | -5/Cetus | Spotted Cetus Guard 21773 | -5/Cetus | Rewired Cetus Guard 21774 | -5/Cetus | Spotted Cetus Guard 21780 | -5/Cetus | Spotted Cetus Guard 21782 | -5/Cetus | Allies destroyed Cetus Guard 21782 | -5/Cetus | Destroyed Cetus Guard 21793 | -5/Cetus | Allies destroyed Cetus Guard 21868 | -5/Cetus | Started Cetus Manufacturing Module 21880 | -5/Cetus | Escorted A7 to Cetus Mainframe 21893 | -5/Cetus | Manufactured an Enhanced Grunt 21905 | -5/Cetus | Discovered new exit (range 16) 21918 | -5/Cetus | Manufactured an Enhanced Grunt 21933 | -5/Cetus | Discovered new exit (range 27) 21942 | -5/Cetus | Destroyed Cetus Guard 21943 | -5/Cetus | Manufactured an Enhanced Grunt 21946 | -5/Cetus | Spotted Cetus Guard 21946 | -5/Cetus | Spotted Cetus Guard 21949 | -5/Cetus | Destroyed Cetus Guard 21952 | -5/Cetus | Destroyed Cetus Guard 21955 | -5/Cetus | Destroyed Cetus Guard 21968 | -5/Cetus | Manufactured an Enhanced Grunt 21977 | -5/Cetus | Met Revision 17 21993 | -5/Cetus | Manufactured an Enhanced Grunt 22174 | -5/Cetus | Murdered A7 22175 | -5/Cetus | Extracted ID and sensor layout for unrecognized location from A7's data core 22189 | -5/Cetus | Entered Archives 22189 | -5/Archives | Accompanied by 20 allies 22258 | -5/Archives | Lost 4 allies 22311 | -5/Archives | Discovered new exit (range 16) 22333 | -5/Archives | Discovered new exit (range 15) 22741 | -5/Archives | Entered Hub_04(d) 22741 | -5/Hub_04(d) | Accompanied by 16 allies 22880 | -5/Hub_04(d) | Network Hub disabled 22886 | -5/Hub_04(d) | Identified exit to Factory 22911 | -5/Hub_04(d) | Lost 5 allies 23068 | -5/Hub_04(d) | Entered Factory 23068 | -4/Factory | Accompanied by 10 allies 23068 | -4/Factory | Evolved 2 slots: Propulsion x1, Utility x1 23625 | -4/Factory | Repaired Hyp. Gauss Cannon+ 23754 | -4/Factory | Lost 3 allies 23757 | -4/Factory | Found Mni. Smartbomb Launcher 23760 | -4/Factory | Found Mni. Smartbomb Launcher 23841 | -4/Factory | Identified exit to Garrison 23865 | -4/Factory | Entered Garrison 23865 | -4/Garrison | Accompanied by 3 allies 23995 | -4/Garrison | Discovered new exit (range 47) 23995 | -4/Garrison | Discovered new exit (range 64) 23995 | -4/Garrison | Discovered new exit (range 54) 23995 | -4/Garrison | Discovered new exit (range 33) 24004 | -4/Garrison | Build established: Bothacker-Tank 24055 | -4/Garrison | Triggered checkpoint 24085 | -4/Garrison | Triggered checkpoint 24137 | -4/Garrison | Destroyed 7 combat bots 24181 | -4/Garrison | Triggered checkpoint 24207 | -4/Garrison | Garrison Relay disabled 24339 | -4/Garrison | Expanded RIF knowledge: Command Fork 24472 | -4/Garrison | Found embedded Infiltrators 24514 | -4/Garrison | Build established: Botlord-Tank 24547 | -4/Garrison | Triggered checkpoint 24614 | -4/Garrison | Rescued a captive Derelict 24615 | -4/Garrison | Rescued a captive Derelict 24657 | -4/Garrison | Expanded RIF knowledge: Patrol Navigation 24729 | -4/Garrison | Entered Factory 24729 | -4/Factory | Accompanied by 3 allies 24767 | -4/Factory | Identified exit to Upper Caves 24767 | -4/Factory | Identified exit to Armory 24869 | -4/Factory | Lost 3 allies 25202 | -4/Factory | Repaired Broken Hyp. Gauss Cannon+ 25292 | -4/Factory | Entered Armory 25313 | -4/Armory | Lost 3 allies 25595 | -4/Armory | P-70 Sage assimilated allied Director 7a 25675 | -4/Armory | Found Unknown Launcher 25675 | -4/Armory | Identified Fusion Bomb Launcher 25831 | -4/Armory | Fabricated Imp. Heavy Siege Treads? 25896 | -4/Armory | Destroyed 8 combat bots 25990 | -4/Armory | Fabricated Hyp. Railgun (x2) 26001 | -4/Armory | Fabricated Imp. Heavy Siege Treads? 26112 | -4/Armory | Found Prototype Launcher 26112 | -4/Armory | Identified Com. Tesla Bomb Launcher 26116 | -4/Armory | Found Com. Tesla Bomb Launcher 26717 | -4/Armory | Spotted B-86 Titan 26726 | -4/Armory | Allies destroyed B-86 Titan 26779 | -4/Armory | Discovered new exit (range 12) 27080 | -4/Armory | Discovered new exit (range 4) 27086 | -4/Armory | Entered Lab 27086 | -4/Lab | Discovered new exit (range 9) 27112 | -4/Lab | Hidden lab's door opened automatically 27112 | -4/Lab | Sensor layout match revealed 27113 | -4/Lab | Gained access to the hidden lab's interior 27162 | -4/Lab | Found Alien Artifact 27171 | -4/Lab | Found Alien Artifact 27171 | -4/Lab | Identified Integrated Dissipator 27171 | -4/Lab | Installed Integrated Dissipator, increased core heat dissipation (+20) 27186 | -4/Lab | Found Alien Artifact 27186 | -4/Lab | Identified Core Expander 27186 | -4/Lab | Installed Core Expander, added new Weapon slot 27228 | -4/Lab | Found Prototype Protection 27228 | -4/Lab | Identified Hvy. Regenerative Plating 27233 | -4/Lab | Found Prototype Hackware 27241 | -4/Lab | Found Prototype Energy Gun 27241 | -4/Lab | Identified Hyp. EM Gauss Rifle 27276 | -4/Lab | Found Hyp. EM Gauss Rifle 27356 | -4/Lab | Found Prototype Special Weapon 27417 | -4/Lab | Identified Gui. Remote Datajack 27439 | -4/Lab | Entered Research 27439 | -3/Research | Evolved 2 slots: Power x1, Utility x1 27639 | -3/Research | Revision forces began assault on 0b10 27658 | -3/Research | Met up with Revision 17++ 27782 | -3/Research | Identified exit to Testing 27879 | -3/Research | Build established: Scavenger-Tank 27992 | -3/Research | Identified exit to Research 28139 | -3/Research | Research terminal network offline 28298 | -3/Research | Entered another Research area 28298 | -2/Research | Evolved 2 slots: Utility x2 28319 | -2/Research | Identified Deep Network Scanner 28320 | -2/Research | Identified exit to Access 28616 | -2/Research | Build established: Hacker-Tank 28801 | -2/Research | Destroyed 9 combat bots 28843 | -2/Research | Entered Access 28843 | -1/Access | Evolved 2 slots: Utility x2 28931 | -1/Access | Identified exit to Surface 29233 | -1/Access | Build established: Botlord-Gunner 29952 | -1/Access | System corruption reached 10% 29982 | -1/Access | Lost 3 parts (3u) 29999 | -1/Access | Build established: Hacker-Tank 30057 | -1/Access | Destroyed 7 combat bots 30109 | -1/Access | Spotted B-99 Colossus 30397 | -1/Access | Central database locked down 30397 | -1/Access | Identified Transdimensional Reconstructor 30508 | -1/Access | Crushed by falling debris 30539 | -1/Access | Lost 3 parts (1p2u) 30894 | -1/Access | Hacking Suite fried by hacking feedback 31084 | -1/Access | Spotted B-99 Colossus 31113 | -1/Access | Destroyed B-99 Colossus 31151 | -1/Access | Spotted B-99 Colossus 31186 | -1/Access | Destroyed B-99 Colossus 31228 | -1/Access | Destroyed 7 combat bots 31268 | -1/Access | Build established: Scavenger-Gunner 31290 | -1/Access | Warped through subspace 31478 | *** | Escaped! Last Messages --------------- 31451_ Slug penetrates Sealed Heavy Doors. 31451_ Slug penetrates Wall. 31454_ Penetrated by Slug. 31454_ Imp. Heavy Siege Treads destroyed. 31456_ Identified Exp. Biometal Medium Treads. 31458_ >> Watcher Feeds: Established visual feed link with W-44 Eye. 31460_ Slug penetrates Sealed Heavy Doors. 31462_ System corrupted: Component data lost. 31463_ Slug penetrates Sealed Heavy Doors. 31463_ Slug penetrates Wall. 31465_ Slammed into H-88 Terminator. 31466_ Penetrated by Slug. 31467_ >> Watcher Feeds: Feed link from W-44 Eye lost. 31467_ Slammed into H-88 Terminator. 31469_ Penetrated by Slug. 31470_ Slammed into H-88 Terminator. 31472_ Penetrated by Slug. 31472_ Slug penetrates Sealed Heavy Doors. 31475_ Penetrated by Slug. Map ----- +----------------------------------------------------+ | ???# ###### ! # ## + | | ???# + # ## # | | ???# ######### # ! ## # | | ??# #??# + ]# ## " # | | # #### # # ## [ """ # | | + + ##+##### """ # | | # # = ## #???# " # | | ??# # ## #???####+######### | | ???# !! # ## #??????# #???????# | | #?## !! ########+######+######## #???????# | | #?# #??????# #???# # #??????## | | #?# #??????# #???# # ########! | | #?# " ######## ##### + | | #?# "%" + hh %w # | | #?# ##################### !! ; #######! | | #?# #???????????????????# !! + #?????#### | | ### #???????????????????# ! % #h #????????? | | #???????????????????# # =#????????? | | #???????????????????##########; ###??????? | | #?????????????????????###?# % ###????? | | #?#########??########## ### ## # #????? | | ### #?# "??" =[ = # # #????? | | # #?# """" h = *%#= #????? | | # =!### h [ [[ [ * #????? | | # ! """ = ##????? | | # ""?" "@ # #?????? | | # "??" "" #?????? | | # "??" #?????? | | ######"### "??" *####?????? | | ???? # "??" "" "" =#????????? | | ??? ?# "??" """T"""|!#????????? | | ?? """ ?#########??########## ####### #????????? | | ? ""T"" ?????????????????????###?????# #????????? | | "" "" ???????????????????#########?# #????????? | | ??? ??? ???????????????????# # #????##### | | ??????? ???????????????????# # #????# | | ???????????????????????????# " + #????# | | ???????????????????????????# """ # #????# | | ???????????????????????????# """ # #????# " | | ???????????????????????????# " ?# #????# "" | | ???????????????????????????# ?# #????# " | | ???????????????????????????# ??# #????# | | ????????????????????????????#######??# #????# | | ?????????????????????????????????????# #????# | | ?????????????????????????????????????# ########## | | ?????????????????????????????????????# | | ?????????????????????????????????????# | | ?????????????????????????????????????############# | | ?????????????????????????????????????????????????? | | ??????????????????????????????????#######????????? | +----------------------------------------------------+ Best States ------------- Heat Dissipation 103 Coolant Potential 100 Energy Generation 65 Energy Capacity 820 Matter Stores 300 Matter Capacity 300 Sight Range 16 Terrain Scan Density 10 Armor Coverage 2400 Resistance: KI 30 Evasion (%) 40 Targeting Accuracy 16 Core Analysis 9 Armor Integrity Analysis 40 Recoil Reduction 6 Matter Filtering 30 Energy Filtering 50 Offensive Hacking 59 Defensive Hacking 10 Relay Coupler Types 3 Relay Coupler Value 58 Authchip Count 2 Trap Extractor Capacity 6 Item Schematics ----------------- Adv. Treads | -8/Materials | Scanalyzed Rnf. Deuterium Engine | -8/Materials | Scanalyzed Lrn. Missile Launcher | -7/Factory | Scanalyzed Imp. Heavy Siege Treads | -5/Extension | Hacked Micro-nuke Launcher | -5/Extension | Hacked Robot Schematics ------------------ None Fabricated ------------ Hyp. Gauss Cannon | x2 | -6/Factory | Preloaded Imp. Heavy Siege Treads | x1 | -4/Armory | Authchip Hyp. Railgun | x2 | -4/Armory | Preloaded Imp. Heavy Siege Treads | x1 | -4/Armory | Authchip Repaired ---------- Flak Gun | 52% | -8/Materials Imp. Light Armor Plating | 70% | -8/Materials Lrn. Missile Launcher | 99% | -7/Factory | Broken Hyp. Gauss Cannon | 10% | -4/Factory Hyp. Gauss Cannon | 2% | -4/Factory | Broken Studied --------- Lgt. Treads | -8/Materials | Hacked Imp. Treads | -8/Materials | Hacked Adv. Treads | -8/Materials | Hacked Imp. EM Pulse Cannon | -7/Factory | Hacked Gauss Cannon | -7/Factory | Hacked Hyp. Gauss Cannon | -6/Factory | Hacked Med. Treads | -6/Factory | Hacked Hvy. Treads | -5/Factory | Hacked Enh. Nova Cannon | -1/Access | Hacked Hyp. Railgun | -1/Access | Hacked Alien Tech Used ----------------- Integrated Dissipator Core Expander Transdimensional Reconstructor Achievements -------------- None Challenges ------------ None Game ------ Seed SixChromaticRail Manual? 0 Play Time 03:21:52 Cumulative 2067.8 hours Start 2026.01.03 @ 21:19:58 End 2026.01.04 @ 02:13:18 Sessions 3 Manual Loads 0 Difficulty Rogue Special Mode None Game No. 1334 Rogue 1330 Adventurer 4 Explorer 0 Win Type 0 Total 284 Types 213/13/22/10/3/1/4/10/5/3 Lore% 98 Gallery% 96 Achievement% 87 Wizard Run 0 Options --------- Layout 2 ASCII 0 Keyboard 1 Movement Vi Keybinds 0 Fullscreen 0 Font 24/Terminus Map View 59x48 Zoom Use 0% Tactical HUD 1 Map Filters NONE Filters NONE Steam 1 RUN: be163d7d-a94d-44d5-af3b-055ff7751172